Workbook

Sheet Version control (hidden)
A1: Government Actuary's Department
A2: TPS - Reinstatement of Part Time Service following Preston ruling (for post retirement employment cases)
A3: Version Control
A4: =CELL("filename",A1) -> L:\PSPS\Preston\TPS LGPS model\2021\April\[Preston TPS April 2021 (for non-ill-health post-retirement employment cases only).xlsm]Version control
A6: Version number | B6: File pathname | C6: Paper file | D6: eBis code | E6: Internal or external documents based on this version | F6: Author or Editor | G6: Date | H6: Comments | I6: Checked by | J6: Date | K6: Comments | L6: External links checked?
A7: no version | B7: \\Gad-backup\ashared\A clients\Preston\TPS LGPS model\2012\_Previous versions\Preston_TPS_August 2012 (for non-ill-health post-retirement employment cases only).xls | D7: 0157-00004-02 | F7: I.Nimalasena | G7: 2012-08-02 | H7: Adapted from | I7: Cody Shek | J7: 2012-08-07 | K7: checked inputs correct for the August 2012 model | L7: no
H8: \\Gad-backup\ashared\A clients\Preston\TPS LGPS model\2012\_Previous versions\Preston_TPS_July 2012 (for non-ill-health post-retirement employment cases only).xls
A9: no version | B9: \\Gad-server1\ashared\A clients\Preston\TPS LGPS model\2012\_Previous versions\Preston_TPS_September 2012 (for non-ill-health post-retirement employment cases only).xls | D9: 0157-00004-02 | F9: I.Nimalasena | G9: 2012-09-04 | I9: Cody Shek | J9: 2012-09-04 | K9: inputs in Factor table looks fine for the Sept model | L9: no
A11: no version | B11: \\Gad-server1\ashared\A clients\Preston\TPS LGPS model\2012\_Previous versions\Preston_TPS_October 2012 (for non-ill-health post-retirement employment cases only).xls | D11: 0157-00004-02 | F11: Nimal | G11: 2012-10-02 | I11: Cody Shek | J11: 2012-10-02 | K11: inputs in Factor table looks fine for the Oct model | L11: no
A12: no version | B12: \\Gad-server1\ashared\A clients\Preston\TPS LGPS model\2012\_Previous versions\Preston_TPS_November 2012 (for non-ill-health post-retirement employment cases only).xls | D12: 0157-00004-02 | F12: Nimal | G12: 2012-11-02 | I12: Cody Shek | J12: 2012-11-02 | K12: inputs in Factor table looks fine for the Nov model | L12: no
A13: no version | B13: \\Gad-server1\ashared\A clients\Preston\TPS LGPS model\2012\_Previous versions\Preston_TPS_December 2012 (for non-ill-health post-retirement employment cases only).xls | D13: 0157-00004-02 | F13: Nimal | G13: 2012-12-04
A14: no version | B14: \\Gad-server1\ashared\A clients\Preston\TPS LGPS model\2013\_Previous version\Preston_TPS_January 2013 (for non-ill-health post-retirement employment cases only).xls | D14: 0157-00004-02 | F14: Nimal | G14: 2013-01-03
A15: no version | B15: \\Gad-server1\ashared\A clients\Preston\TPS LGPS model\2013\_Previous version\Preston_TPS_February 2013 (for non-ill-health post-retirement employment cases only).xls | D15: 0157-00004-02 | F15: Nimal | G15: 2013-02-04 | I15: Josh Crickett | J15: 2013-02-04 | K15: agree the inputs are correct for the Feb 2013 Model | L15: no
A16: no version | B16: \\Gad-server1\ashared\A clients\Preston\TPS LGPS model\2013\_Previous version\Preston_TPS_March 2013 (for non-ill-health post-retirement employment cases only).xls | D16: 0157-00004-02 | F16: Nimal | G16: 2013-03-05 | I16: Josh Crickett | J16: 2013-03-07 | K16: agree the inputs are correct for the March 2013 model | L16: no
A17: no version | B17: \\Gad-server1\ashared\A clients\Preston\TPS LGPS model\2013\_Previous version\Preston_TPS_April 2013 (for non-ill-health post-retirement employment cases only).xls | D17: 0157-00004-02 | F17: Nimal | G17: 2013-04-03 | I17: Josh Crickett | J17: 2013-04-04 | K17: agree the inputs are correct for the April 2013 model | L17: no
A18: no version | B18: \\Gad-server1\ashared\A clients\Preston\TPS LGPS model\2013\_Previous version\Preston_TPS_May 2013 (for non-ill-health post-retirement employment cases only).xls | D18: 0157-00004-02 | F18: Nimal | G18: 2013-05-03 | I18: Josh Crickett | J18: 2013-05-16 | K18: agree the inputs are correct for the May 2013 model | L18: no
A19: no version | B19: \\Gad-server1\ashared\A clients\Preston\TPS LGPS model\2013\_Previous version\Preston_TPS_June 2013 (for non-ill-health post-retirement employment cases only).xls | D19: 0157-00004-02 | F19: Nimal | G19: 2013-06-04 | I19: Josh Crickett | J19: 2013-06-05 | K19: agree the inputs are correct for the June 2013 model | L19: no
A20: no version | B20: \\Gad-server1\ashared\A clients\Preston\TPS LGPS model\2013\_Previous version\Preston_TPS_July 2013 (for non-ill-health post-retirement employment cases only).xls | D20: 0157-00004-02 | F20: Nimal | G20: 2013-07-02 | I20: Josh Crickett | J20: 2013-07-03 | K20: agree the inputs are correct fot the July 2013 model | L20: no
A21: no version | B21: \\Gad-server1\ashared\A clients\Preston\TPS LGPS model\2013\_Previous version\Preston_TPS_August 2013 (for non-ill-health post-retirement employment cases only).xls | D21: 0157-00004-02 | F21: Nimal | G21: 2013-08-02 | I21: Josh Crickett | J21: 2013-08-05 | K21: agree the inputs are correct for the August 2013 model | L21: no
A22: no version | B22: \\Gad-server1\ashared\A clients\Preston\TPS LGPS model\2013\_Previous version\Preston_TPS_September 2013 (for non-ill-health post-retirement employment cases only).xls | D22: 0157-00004-02 | F22: Nimal | G22: 2013-09-03 | I22: Josh Crickett | J22: 2013-09-05 | K22: agree the inputs are correct for the September 2013 model | L22: no
A23: vo version | B23: \\Gad-server1\ashared\A clients\Preston\TPS LGPS model\2013\_Previous version\Preston_TPS_October 2013 (for non-ill-health post-retirement employment cases only).xls | D23: 0157-00004-02 | F23: Nimal | G23: 2013-10-03 | I23: Josh Crickett | J23: 2013-10-04 | K23: agree the inputs are correct for the October 2013 model | L23: no
A24: no version | B24: \\Gad-server1\ashared\A clients\Preston\TPS LGPS model\2013\_Previous version\Preston_TPS_November 2013 (for non-ill-health post-retirement employment cases only).xls | D24: 0157-00004-02 | F24: TM | G24: 2013-11-04 | I24: Josh Crickett | J24: 2013-11-05 | K24: agree the inputs are correct for the November 2013 model | L24: no
A25: no version | B25: \\Gad-server1\ashared\A clients\Preston\TPS LGPS model\2013\_Previous version\Preston_TPS_December 2013 (for non-ill-health post-retirement employment cases only).xls | D25: 0157-00004-02 | F25: Nimal | G25: 2013-12-03 | I25: Josh Crickett | J25: 2013-12-04 | K25: Agree the inputs are correct for the December 2013 model | L25: no
A26: no version | B26: \\Gad-server1\ashared\A clients\Preston\TPS LGPS model\2014\_Previous version\Preston_TPS_January 2014 (for non-ill-health post-retirement employment cases only).xls | D26: 0157-00004-02 | F26: Nimal | G26: 2014-01-03 | I26: Joshua Crickett | J26: 2014-01-06 | K26: I agree the inputs are correct for the January 2014 model | L26: no
A27: no version | B27: \\Gad-server1\ashared\A clients\Preston\TPS LGPS model\2014\_Previous version\Preston_TPS_February 2014 (for non-ill-health post-retirement employment cases only).xls | D27: 0157-00004-02 | F27: Nimal | G27: 2014-02-04 | I27: Joshua Crickett | J27: 2014-02-04 | K27: I agree that the inputs are correct for the February 2014 model | L27: no
A28: no version | B28: \\Gad-server1\ashared\A clients\Preston\TPS LGPS model\2014\_Previous version\Preston_TPS_March 2014 (for non-ill-health post-retirement employment cases only).xls | D28: 0157-00004-02 | F28: Nimal | G28: 2014-03-04 | I28: Joshua Crickett | J28: 2014-03-06 | K28: I agre that the inputs are correct for the March 2014 model | L28: no
A29: no version | B29: \\Gad-server1\ashared\A clients\Preston\TPS LGPS model\2014\_Previous version\Preston_TPS_April 2014 (for non-ill-health post-retirement employment cases only).xls | D29: 0157-00004-02 | F29: Nimal | G29: 2014-04-02 | I29: Joshua Crickett | J29: 2014-04-03 | K29: I agree that the inputs are correct for the April 2014 model | L29: no
A30: no version | B30: \\Gad-server1\ashared\A clients\Preston\TPS LGPS model\2014\_Previous version\Preston_TPS_May 2014 (for non-ill-health post-retirement employment cases only).xls | D30: 0157-00004-02 | F30: Joshua | G30: 2014-05-07 | I30: TM | J30: 2014-05-07 | K30: I agree that the inputs are correct for the May 2014 model | L30: no
A31: no version | B31: \\Gad-server1\ashared\A clients\Preston\TPS LGPS model\2014\_Previous version\Preston_TPS_June 2014 (for non-ill-health post-retirement employment cases only).xls | D31: 0157-00004-02 | F31: Joshua | G31: 2014-06-03 | I31: TM | J31: 2014-06-03 | K31: I agree that the inputs are correct for the June 2014 model | L31: no
A32: no version | B32: \\Gad-server1\ashared\A clients\Preston\TPS LGPS model\2014\_Previous version\Preston_TPS_July 2014 (for non-ill-health post-retirement employment cases only).xls | D32: 0157-00004-02 | F32: Tom | G32: 2014-07-03 | I32: Joshua Crickett | J32: 2014-07-03 | K32: I agree the inputs are correct for the July 2014 model. | L32: no
A33: no version | B33: \\Gad-server1\ashared\A clients\Preston\TPS LGPS model\2014\_Previous version\Preston_TPS_July 2014 (for non-ill-health post-retirement employment cases only).xls | D33: 0157-00004-02 | F33: Tom | G33: 2014-08-04 | I33: CS | J33: 2014-08-04 | K33: Aug 14 looks good
A34: no version | B34: Preston_TPS_September 2014 (for non-ill-health post-retirement employment cases only).xls | D34: 0157-00004-02 | F34: Tom | G34: 2014-09-02 | I34: Mara | J34: 2014-09-02 | K34: Agree that the inputs are correct for the September 2014 model
A35: no version | B35: \\Gad-server1\ashared\A clients\Preston\TPS LGPS model\2014\_Previous version\Preston_TPS_October 2014 2014 (for non-ill-health post-retirement employment cases only).xls | D35: 0157-00004-02 | F35: Tom | G35: 2014-10-03 | I35: Jeanette | J35: 2014-10-03 | K35: Agree that the inputs are correct for the October 2014 model
A36: no version | B36: \\Gad-server1\ashared\A clients\Preston\TPS LGPS model\2014\_Previous version\Preston_TPS_May 2014 (for non-ill-health post-retirement employment cases only).xls | D36: 0157-00004-02 | F36: Tom | G36: 2014-11-04 | I36: CS | J36: 2014-11-06 | K36: Nov 14 looks ok
A37: no version | B37: Preston_TPS_December 2014 (for non-ill-health post-retirement employment cases only).xls | D37: 0157-00004-02 | F37: Jeanette | G37: 2014-12-04 | I37: CS | J37: 2014-12-08 | K37: Dec 14 looks fine
A38: no version | B38: Preston_TPS_January 2015 (for non-ill-health post-retirement employment cases only).xls | D38: 0157-00004-02 | F38: Jeanette | G38: 2015-01-06 | I38: Tom McMahon | J38: 2015-01-07 | K38: Agreed
A39: no version | B39: Preston_TPS_February 2015 (for non-ill-health post-retirement employment cases only).xls | D39: 0157-00004-02 | F39: Jeanette | G39: 2015-02-03 | I39: Tom McMahon | J39: 2015-02-04 | K39: Agreed
A40: no version | B40: \\Gad-server1\ashared\A clients\Preston\TPS LGPS model\2015\_Previous version\March\Preston_TPS_March 2015.xls | D40: 0157-00004-02 | F40: Tom | G40: 2015-03-05 | I40: Jeanette | J40: 2015-03-06 | K40: Agreed
A41: no version | B41: \\Gad-server1\ashared\A clients\Preston\TPS LGPS model\2015\_Previous version\April\Preston_TPS_April 2015 (for non-ill-health post-retirement employment cases only).xls | D41: 0157-00004-02 | F41: Jeanette | G41: 2015-04-07 | I41: CS | J41: 2015-04-07 | K41: Apr 15 looks fine | L41: no
A42: no version | B42: \\Gad-server1\ashared\A clients\Preston\TPS LGPS model\2015\_Previous version\May\Preston_TPS_May 2015 (for non-ill-health post-retirement employment cases only).xls | D42: 0157-00004-02 | F42: Jeanette | G42: 2015-05-05 | I42: Tom | J42: 2015-05-05 | K42: Agreed
A43: no version | B43: \\Gad-server1\ashared\A clients\Preston\TPS LGPS model\2015\_Previous version\May\Preston_TPS_May 2015 (for non-ill-health post-retirement employment cases only).xls | D43: 0157-00004-02 | F43: Jeanette | G43: 2015-05-05 | H43: Updated to reflect correct rate | I43: Tom | J43: 2015-05-06 | K43: Agreed
A44: no version | B44: \\Gad-server1\ashared\A clients\Preston\TPS LGPS model\2015\_Previous version\June\Preston_TPS_June 2015 (for non-ill-health post-retirement employment cases only).xls | D44: 0157-00004-02 | F44: Jeanette | G44: 2015-06-02 | I44: Tom | J44: 2015-06-02
A45: no version | B45: \\Gad-server1\ashared\A clients\Preston\TPS LGPS model\2015\_Previous version\July\Preston_TPS_July 2015 (for non-ill-health post-retirement employment cases only).xls | D45: 0157-00004-02 | F45: Jeanette | G45: 2015-07-02 | I45: Tom | J45: 2015-07-02
A46: no version | B46: \\Gad-server1\ashared\A clients\Preston\TPS LGPS model\2015\_Previous version\August\Preston_TPS_August 2015 (for non-ill-health post-retirement employment cases only).xls | D46: 0157-00004-02 | F46: Tom | G46: 2015-08-04 | I46: Jeanette | J46: 2015-08-04
A47: no version | B47: \\Gad-server1\ashared\A clients\Preston\TPS LGPS model\2015\_Previous version\September\Preston_TPS_September 2015 (for non-ill-health post-retirement employment cases only).xls | D47: 0157-00004-02 | F47: Tom | G47: 2015-09-02 | I47: Jeanette | J47: 2015-09-03
A48: no version | B48: \\Gad-server1\ashared\A clients\Preston\TPS LGPS model\2015\_Previous version\October\Preston_TPS_October 2015 (for non-ill-health post-retirement employment cases only).xls | D48: 0157-00004-02 | F48: Tom | G48: 2015-10-02 | I48: Jeanette | J48: 2015-10-05
A49: no version | B49: \\Gad-server1\ashared\A clients\Preston\TPS LGPS model\2015\_Previous version\November\Preston_TPS_November 2015 (for non-ill-health post-retirement employment cases only).xls | D49: 0157-00004-02 | F49: Tom | G49: 2015-11-03 | I49: Jeanette | J49: 2015-11-03
A50: no version | B50: \\Gad-server1\ashared\A clients\Preston\TPS LGPS model\2015\_Previous version\December\Preston_TPS_December 2015 (for non-ill-health post-retirement employment cases only).xlsm | D50: 0157-00004-02 | F50: Tom | G50: 2015-12-02 | I50: Jeanette | J50: 2015-12-03
A51: no version | B51: \\Gad-server1\ashared\A clients\Preston\TPS LGPS model\2016\January\Preston_TPS_January 2016 (for non-ill-health post-retirement employment cases only).xlsm | D51: 0157-00004-02 | F51: Tom | G51: 2016-01-05 | I51: CS | J51: 2016-01-05 | K51: Jan16 model looks fine
A52: no version | B52: \\Gad-server1\ashared\A clients\Preston\TPS LGPS model\2016\February\Preston_TPS_February 2016 (for non-ill-health post-retirement employment cases only).xlsm | D52: 0157-00004-02 | F52: Jeanette | G52: 2016-02-02 | I52: TM | J52: 2016-02-04
A53: no version | B53: \\Gad-server1\ashared\A clients\Preston\TPS LGPS model\2016\March\Preston_TPS_March 2016 (for non-ill-health post-retirement employment cases only).xlsm | D53: 0157-00004-02 | F53: Tom | G53: 2016-03-02 | I53: JJ | J53: 2016-03-04 | K53: Correction to the ILG yield (over 15 years)
A54: no version | B54: \\Gad-server1\ashared\A clients\Preston\TPS LGPS model\2016\April\Preston_TPS_April 2016 (for non-ill-health post-retirement employment cases only).xlsm | D54: 0157-00004-02 | F54: Tom | G54: 2016-04-04 | I54: JJ | J54: 2016-04-05
A55: no version | B55: \\Gad-server1\ashared\A clients\Preston\TPS LGPS model\2016\May\Preston_TPS_May 2016 (for non-ill-health post-retirement employment cases only).xlsm | D55: 0157-00004-02 | F55: Tom | G55: 2016-05-04 | I55: JJ | J55: 2016-05-04
A56: no version | B56: \\Gad-server1\ashared\A clients\Preston\TPS LGPS model\2016\June\Preston_TPS_June 2016 (for non-ill-health post-retirement employment cases only).xlsm | D56: 0157-00004-02 | F56: Jeanette | G56: 2016-06-02 | I56: CS | J56: 2016-06-02 | K56: June 16 looks fine
A57: no version | B57: \\Gad-server1\ashared\A clients\Preston\TPS LGPS model\2016\July\Preston_TPS_July 2016 (for non-ill-health post-retirement employment cases only).xlsm | D57: 0157-00004-02 | F57: Jeanette | G57: 2016-07-04 | I57: CS | J57: 2016-07-05 | K57: July 16 is ok
A58: no version | B58: \\Gad-server1\ashared\A clients\Preston\TPS LGPS model\2016\August\Preston_TPS_August 2016 (for non-ill-health post-retirement employment cases only).xlsm | D58: 0157-00004-02 | F58: Jeanette | G58: 2016-08-02 | I58: CS | J58: 2016-08-04 | K58: Aug 16 is fine
A59: no version | B59: \\Gad-server1\ashared\A clients\Preston\TPS LGPS model\2016\September\Preston_TPS_September 2016 (for non-ill-health post-retirement employment cases only).xlsm | D59: 0157-00004-02 | F59: Jeanette | G59: 2016-09-08 | I59: CS | J59: 2016-09-16 | K59: Sept 16 looks fine
A60: no version | B60: \\Gad-server1\ashared\A clients\Preston\TPS LGPS model\2016\October\Preston_TPS_October 2016 (for non-ill-health post-retirement employment cases only).xlsm | D60: 0157-00004-02 | F60: RG | G60: 2016-10-04 | I60: MR | J60: 2016-10-04 | K60: Oct 2016 looks fine
A61: no version | B61: \\Gad-server1\ashared\A clients\Preston\TPS LGPS model\2016\November\Preston_TPS_November 2016 (for non-ill-health post-retirement employment cases only).xlsm | D61: 0157-00004-02 | F61: RG | G61: 2016-11-02 | I61: MR | J61: 2016-11-02 | K61: NOV 2016 looks fine
A62: no version | B62: \\Gad-server1\ashared\A clients\Preston\TPS LGPS model\2016\December\Preston_TPS_December 2016 (for non-ill-health post-retirement employment cases only).xlsm | D62: 0157-00004-02 | F62: RG | G62: 2016-12-02 | I62: MR | J62: 2016-12-02 | K62: dec 2016 looks fine
A63: no version | B63: \\Gad-server1\ashared\A clients\Preston\TPS LGPS model\2017\January\Preston_TPS_January 2017 (for non-ill-health post-retirement employment cases only).xlsm | D63: 0157-00004-02 | F63: RG | G63: 2017-01-10 | I63: MR | J63: 2017-01-10 | K63: jan 17 looks fine
A64: no version | B64: =CELL("filename",B61) -> L:\PSPS\Preston\TPS LGPS model\2021\April\[Preston TPS April 2021 (for non-ill-health post-retirement employment cases only).xlsm]Version control | D64: 0157-00004-02 | F64: MR | G64: 2017-02-02 | I64: RG | J64: 2017-02-03 | K64: Feb 2017 looks fine
A65: no version | B65: \\Gad-server1\ashared\A clients\Preston\TPS LGPS model\2017\March\Preston TPS March 2017 (for non-ill-health post-retirement employment cases only).xlsm | D65: 0157-00004-02 | F65: RG | G65: 2017-03-02 | I65: MR | J65: 2017-03-02 | K65: March 17 looks fine
A66: no version | B66: \\Gad-server1\ASHARED\A clients\Preston\TPS LGPS model\2017\April\Preston TPS April 2017 (for non-ill-health post-retirement employment cases only).xlsm | D66: 0157-00004-02 | F66: EA-M | G66: 2017-04-05 | I66: MR | J66: 2017-04-06 | K66: April 17 looks ok
A67: no version | B67: \\Gad-server1\ashared\A clients\Preston\TPS LGPS model\2017\May\Preston TPS May 2017 (for non-ill-health post-retirement employment cases only).xlsm | D67: 0157-00004-02 | F67: RG | G67: 2017-05-11 | I67: MR | J67: 2017-05-11 | K67: May 17 looks ok
A68: no version | B68: \\Gad-server1\ashared\A clients\Preston\TPS LGPS model\2017\June\Preston TPS June 2017 (for non-ill-health post-retirement employment cases only).xlsm | D68: 0157-00004-02 | F68: MS | G68: 2017-06-02 | I68: RG | J68: 2017-06-05 | K68: June 17 looks fine
A69: no version | B69: \\Gad-server1\ashared\A clients\Preston\TPS LGPS model\2017\July\Preston TPS July 2017 (for non-ill-health post-retirement employment cases only).xlsm | D69: 0157-00004-02 | F69: MS | G69: 2017-07-05 | I69: MR | J69: 2017-07-05 | K69: =IF(I69<>"",TEXT(J69,"mm/yy")&" "&"looks ok",0) -> 07/17 looks ok
F70: MS | G70: 2017-07-12 | H70: July monthly update - new AWE KAB9 statistic that was rebased. KAB9 restated from inception in 2000. For the Preston model, we amended to use the new index from April 2017 (3m difference) - which meant rebasing from month before ie March 2017 to get the correct increase to April 2017. We are using the integer KAB9 index. Information based on....below | I70: RG | J70: 2017-07-12 | K70: agree to changes made. April 2017 index (used by settlement model) is unchanged from March 2017 index as the underlying KAB9 index is 502 at both months (new/latest index).
H71: Notes
H72: Data from January 2000 have been revised due to the implementation of improvements to earnings estimates for small businesses in AWE.
H73: Further information is shown in an article on the ONS website
H74: https://www.ons.gov.uk/employmentandlabourmarket/peopleinwork/earningsandworkinghours/articles/improvementstoearningsestimatesforsmallbusinessesinaverageweeklyearnings/2017
A76: no version | B76: \\Gad-server1\ashared\A clients\Preston\TPS LGPS model\2017\August\Preston TPS July 2017 (for non-ill-health post-retirement employment cases only).xlsm | D76: 0157-00004-02 | F76: RG | G76: 2017-08-02 | I76: MR | J76: 2017-08-04 | K76: Aug 17 looks ok
A77: no version | B77: \\Gad-server1\ashared\A clients\Preston\TPS LGPS model\2017\September\Preston TPS September 2017 (for non-ill-health post-retirement employment cases only).xlsm | D77: 0157-00004-02 | F77: RG | G77: 2017-09-13 | I77: MR | J77: 2017-09-14 | K77: Sept 17 looks ok
B78: \\Gad-server1\ashared\A clients\Preston\TPS LGPS model\2017\September\Preston TPS October 2017 (for non-ill-health post-retirement employment cases only).xlsm | F78: MS | G78: 2017-10-05 | I78: MR | J78: 2017-10-06 | K78: Oct 17 looks ok
B79: \\Gad-server1\ashared\A clients\Preston\TPS LGPS model\2017\November\Preston TPS November 2017 (for non-ill-health post-retirement employment cases only).xlsm | F79: MS | G79: 2017-11-06 | I79: RG | J79: 2017-11-07 | K79: Nov 17 looks ok
F80: MS | G80: 2017-12-07 | I80: MR | J80: 2017-12-12 | K80: Dec 17 looks ok
A81: no version | B81: \\Gad-server1\ashared\A clients\Preston\TPS LGPS model\2018\January\Preston TPS January 2018 (for non-ill-health post-retirement employment cases only).xlsm | F81: RG | G81: 2018-01-04 | I81: MR | J81: 2018-01-05 | K81: Jan 18 looks ok
B82: \\Gad-server1\ashared\A clients\Preston\TPS LGPS model\2018\February\Preston TPS February 2018 (for non-ill-health post-retirement employment cases only).xlsm | F82: MS | G82: 2018-02-08 | I82: RG | J82: 2018-02-09 | K82: All okay
F83: MS | G83: 2018-03-07 | I83: RG | J83: 2018-03-08 | K83: All okay
F84: MS | G84: 2018-04-11 | I84: RG | J84: 2018-04-11 | K84: All okay
B85: \\Gad-server1\ashared\A clients\Preston\TPS LGPS model\2018\May\Preston TPS May 2018 (for non-ill-health post-retirement employment cases only).xlsm | F85: MS | G85: 2018-05-15 | I85: MR | J85: 2018-05-15 | K85: All okay
B86: \\Gad-server1\ashared\A clients\Preston\TPS LGPS model\2018\June\Preston TPS June 2018 (for non-ill-health post-retirement employment cases only).xlsm | F86: RG | G86: 2018-06-04 | I86: MR | J86: 2018-06-05 | K86: All okay
B87: S:\A clients\Preston\TPS LGPS model\2018\August\Preston TPS August 2018 (for non-ill-health post-retirement employment cases only).xlsm | F87: ZM | G87: 2018-08-03 | I87: RG | J87: 2018-08-06 | K87: All okay
B88: \\Gad-ast\ast\Other clients\Preston\TPS LGPS model\2018\September\Preston TPS September 2018 (for non-ill-health post-retirement employment cases only).xlsm | F88: MS | G88: 2018-09-06 | I88: RG | J88: 2018-09-10 | K88: All okay
B89: \\Gad-ast\ast\Other clients\Preston\TPS LGPS model\2018\October\Preston TPS October 2018 (for non-ill-health post-retirement employment cases only).xlsm | F89: ZM | G89: 2018-10-03 | I89: MS | J89: 2018-10-05 | K89: All okay
B90: L:\Other clients\Preston\TPS LGPS model\2018\November\Preston TPS November 2018 (for non-ill-health post-retirement employment cases only).xlsm | F90: MS | G90: 2018-11-08 | I90: RG | J90: 2018-11-08 | K90: All okay
B91: "L:\Other clients\Preston\TPS LGPS model\2018\December\Preston TPS December 2018 (for non-ill-health post-retirement employment cases only).xlsm" | F91: ZM | G91: 2018-12-05 | I91: MS | J91: 2018-12-06 | K91: All okay
B92: \\Gad-ast\ast\Other clients\Preston\TPS LGPS model\2019\January\Preston TPS January 2019 (for non-ill-health post-retirement employment cases only).xlsm | F92: AAM | G92: 2019-01-09 | I92: RG | J92: 2019-01-09 | K92: All okay
B93: \\Gad-ast\ast\Other clients\Preston\TPS LGPS model\2019\February\Preston TPS February 2019 (for non-ill-health post-retirement employment cases only).xlsm | F93: AAM | G93: 2019-02-06 | I93: MS | J93: 2019-02-06 | K93: All okay
B94: \\Gad-ast\ast\PSPS\Preston\TPS LGPS model\2019\March\Preston TPS March 2019 (for non-ill-health post-retirement employment cases only).xlsm | F94: AAM | G94: 2019-03-04 | I94: RG | J94: 2019-03-04 | K94: All okay
B95: \\Gad-ast\ast\PSPS\Preston\TPS LGPS model\2019\April\Preston TPS April 2019 (for non-ill-health post-retirement employment cases only).xlsm | F95: AAM | G95: 2019-04-02 | I95: RG | J95: 2019-04-02 | K95: All okay
B96: \\Gad-ast\ast\PSPS\Preston\TPS LGPS model\2019\May\Preston TPS April 2019 (for non-ill-health post-retirement employment cases only).xlsm | F96: AAM | G96: 2019-05-03 | I96: RG | J96: 2019-05-03 | K96: All okay
B97: \\Gad-ast\ast\PSPS\Preston\TPS LGPS model\2019\June\Preston TPS June 2019 (for non-ill-health post-retirement employment cases only).xlsm | F97: AAM | G97: 2019-06-06 | I97: RG | J97: 2019-06-07 | K97: All okay
B98: "L:\PSPS\Preston\TPS LGPS model\2019\July\Preston TPS June 2019 (for non-ill-health post-retirement employment cases only).xlsm" | F98: PC | G98: 2019-07-03 | I98: RG | J98: 2019-07-03 | K98: All okay
B99: L:\PSPS\Preston\TPS LGPS model\2019\August\Preston TPS August 2019 (for non-ill-health post-retirement employment cases only).xlsm | F99: PC | G99: 2019-08-06 | I99: AM | J99: 2019-08-06 | K99: All okay
B100: L:\PSPS\Preston\TPS LGPS model\2019\September\Preston TPS September 2019 (for non-ill-health post-retirement employment cases only).xlsm | F100: PC | G100: 2019-09-04 | I100: AM
B101: L:\PSPS\Preston\TPS LGPS model\2019\October\Preston TPS October 2019 (for non-ill-health post-retirement employment cases only).xlsm | F101: PC | G101: 2019-10-03 | I101: AM | J101: 2019-10-03 | K101: All okay
B102: \\Gad-ast\ast\PSPS\Preston\TPS LGPS model\2019\November\Preston TPS November 2019 (for non-ill-health post-retirement employment cases only).xlsm | F102: RR | G102: 2019-11-05 | I102: AM | J102: 2019-11-05 | K102: All okay
B103: L:\PSPS\Preston\TPS LGPS model\2019\December\Preston TPS December 2019 (for non-ill-health post-retirement employment cases only).xlsm | F103: PC | G103: 2019-12-03 | I103: AM | J103: 2019-12-03 | K103: All okay
B104: L:\PSPS\Preston\TPS LGPS model\2020\January\Preston TPS January 2020 (for non-ill-health post-retirement employment cases only).xlsm | F104: PC | G104: 2020-01-03 | I104: AM | J104: 2020-01-06 | K104: All okay
B105: L:\PSPS\Preston\TPS LGPS model\2020\February\Preston TPS February 2020 (for non-ill-health post-retirement employment cases only).xlsm | F105: PC | G105: 2020-02-05 | I105: AM | J105: 2020-02-05 | K105: All okay
E106: L:\PSPS\Preston\TPS LGPS model\2020\March\Preston TPS March 2020 (for non-ill-health post-retirement employment cases only).xlsm | F106: PC | G106: 2020-03-04 | I106: AM | J106: 2020-03-05 | K106: All okay
B107: L:\PSPS\Preston\TPS LGPS model\2020\April\Preston TPS April 2020 (for non-ill-health post-retirement employment cases only).xlsm | F107: PC | G107: 2020-04-03 | I107: AM | J107: 2020-04-06 | K107: All okay
B108: \\Gad-ast\ast\PSPS\Preston\TPS LGPS model\2020\May\Preston TPS May 2020 (for non-ill-health post-retirement employment cases only).xlsm | F108: LS | G108: 2020-05-04 | I108: PC | J108: 2020-05-05 | K108: All okay
B109: \\Gad-ast\ast\PSPS\Preston\TPS LGPS model\2020\June\Preston TPS June 2020 (for non-ill-health post-retirement employment cases only).xlsm | F109: TG | G109: 2020-06-02 | I109: PC | J109: 2020-06-03 | K109: All okay
B110: \\Gad-ast\ast\PSPS\Preston\TPS LGPS model\2020\July\Preston TPS July 2020 (for non-ill-health post-retirement employment cases only).xlsm | F110: TG | G110: 2020-07-02 | I110: PC | J110: 2020-07-03 | K110: All okay
B111: \\Gad-ast\ast\PSPS\Preston\TPS LGPS model\2020\August\Preston TPS August 2020 (for non-ill-health post-retirement employment cases only).xlsm | F111: TG | G111: 2020-08-04 | I111: PC | J111: 2020-08-06 | K111: All okay
B112: \\Gad-ast\ast\PSPS\Preston\TPS LGPS model\2020\September\Preston TPS September 2020 (for non-ill-health post-retirement employment cases only).xlsm | F112: TG | G112: 2020-09-03 | I112: PC | J112: 2020-09-03 | K112: All okay
B113: \\Gad-ast\ast\PSPS\Preston\TPS LGPS model\2020\October\Preston TPS October 2020 (for non-ill-health post-retirement employment cases only).xlsm | F113: TG | G113: 2020-10-02 | I113: PC | J113: 2020-10-05 | K113: All okay
B114: \\Gad-ast\ast\PSPS\Preston\TPS LGPS model\2020\November\Preston TPS November 2020 (for non-ill-health post-retirement employment cases only).xlsm | F114: TG | G114: 2020-11-03 | I114: PC | J114: 2020-11-05 | K114: All okay
B115: \\Gad-ast\ast\PSPS\Preston\TPS LGPS model\2020\December\Preston TPS December 2020 (for non-ill-health post-retirement employment cases only).xlsm | F115: TG | G115: 2020-12-04 | I115: PC | J115: 2020-12-07 | K115: noticed issue with Historical interest rate
B116: \\Gad-ast\ast\PSPS\Preston\TPS LGPS model\2021\January\Preston TPS January 2021 (for non-ill-health post-retirement employment cases only).xlsm | F116: TG | G116: 2021-01-15 | I116: PC | J116: 2021-01-21 | K116: all okay, using the correct value for the January update, kept incorrect interest rates as per email from AST lead.
B117: \\Gad-ast\ast\PSPS\Preston\TPS LGPS model\2021\February\Preston TPS February 2021 (for non-ill-health post-retirement employment cases only).xlsm | F117: TG | G117: 2021-02-03 | I117: PC | J117: 2021-02-04 | K117: All okay
B118: \\Gad-ast\ast\PSPS\Preston\TPS LGPS model\2021\March\Preston TPS March 2021 (for non-ill-health post-retirement employment cases only).xlsm | F118: TG | G118: 2021-03-02 | I118: PC | J118: 2021-03-03 | K118: All okay
B119: \\Gad-ast\ast\PSPS\Preston\TPS LGPS model\2021\April\Preston TPS April 2021 (for non-ill-health post-retirement employment cases only).xlsm | F119: TG | G119: 2021-04-07 | I119: PC | J119: 2021-04-14 | K119: All okay

Sheet Contributions
J1: this is used in the calculations | AA1: must be active to use Section 3 | AD1: act end | AE1: =MIN(DATE(YEAR(K10),MONTH(K10)+4,1)-1,DATE(YEAR(G53),MONTH(G53)+1,1)-1) -> 
B2: Reinstatement of Part Time Service Following the Preston Ruling | J2: probably can be deleted | AA2: Section 3 = DoL ranges - CS 30/7/08 | AD2: def end | AE2: =DATE(YEAR(K10),MONTH(K10)+4,1)-1 -> 2021-07-31 | AF2: max(DoL,y) | AG2: =IF(E84="active",MAX(DATE(AG3,1,1),VALUE(AE4)),DATE(AG3,1,1)) -> 
B3: to be used for post-retirement employment cases only | J3: Changes made CS 10/3/2010 - but need to tweak results from Part C and D? | AA3: First possible DoL | AC3: =F53 -> 00:00:00 | AE3: =YEAR(K10) -> 2021 | AG3: =INDIRECT(RIGHT(M85,3)) -> 
B4: Teachers Pension Scheme | J4: amended cell H17 (error message, if age at doc > 60 | AD4: DoL | AE4: =E73 -> 00:00:00 | AF4: current | AG4: =K10 -> 2021-04-15
B5: Model for repayments of outstanding member contributions and related calculations | K5: >>>anything to the right of column J is hidden | AA5: start date (end month) | AC5: =DATE(AB15,AA15+1,1)-1 -> 1900-01-31 | AD5: end date | AE5: =IF(E84="active",AE1,AE2) -> 2021-07-31 | AG5: =AE5 -> 2021-07-31
Z6: duplication>> | AA6: end date max((now+3mths), end conts) | AC6: =MIN(DATE(YEAR(K10),MONTH(K10)+4,1)-1,DATE(YEAR(G53),MONTH(G53)+1,1)-1) ->  | AD6: months | AE6: =MONTH(AE5)-AD15+12*(YEAR(AE5)-AE3)+1 -> 4 | AG6: =MONTH(AG5)-MONTH(AG4)+12*(YEAR(AG5)-YEAR(AG4))+1 -> 4
B7: Section 1: Initial calculation of repayment amounts | H7: ERROR MESSAGES COLUMN | AA7: rows to use | AC7: =MAX(0,MONTH(AC6)-MONTH(AC5)+12*(YEAR(AC6)-YEAR(AC5))) ->  | AD7: rows to use | AE7: =MIN(12-AD15+1,AE6) -> 4 | AG7: =MIN(4,AE6)-AE7 -> 0
N8: Conditional Ranges | AA8: last row | AC8: =15+AC7 ->  | AD8: CD-max(DoL,CD) | AE8: =IF(E84="active",MAX(0,12*(YEAR(AE4)-YEAR(K10))+MONTH(AE4)-MONTH(K10)),) -> 0 | AG8: =MAX(0,MONTH(AG2)-1) -> 
B9: Part A: Data Needed for Every Case | N9: for dropdown boxes | AA9: range | AC9: ="AC15:AC"&AC8 ->  | AE9: ="AE"&15+AE8&":AE"&15+AE7-1 -> AE15:AE18 | AG9: ="AG"&15+AG8&":AG"&15+AG7-1 -> 
B10: Name | J10: Current Date | K10: =TODAY() -> 2021-04-15 | S10: month range | U10: year range for | V10: range to determine the | Y10: day range for | AE10: For Section 4 | AG10: For Section 4
B11: Date of Birth (dd/mm/yyyy) | H11: =IF(ISNUMBER(DATE(YEAR(E11),MONTH(E11),DAY(E11)))=TRUE,"","Error in date entry") ->  | J11: Age | K11: =(K16-E11)/365.25 ->  | S11: for reinstatement | U11: reinstatement start | V11: max number of days in | Y11: reinstatement | AD11: If CD (or DoL) is Oct, Nov or Dec, then want
B12: Initial quotation calculation or follow-up query subsequent to re-instatement decision? | J12: Type of Calculation | K12: Initial Quotation | L12: Follow-up query | M12: Follow-up query | N12: =(E12="Follow-up query")*1 -> 0 | S12: start and end dates | U12: and end dates | V12: a particular month | Y12: start and end | AD12: to have CD month to Dec of current
C13: =IF(E12="Initial Quotation","","If 'Follow-up query', date of calculation for original quotation") -> If 'Follow-up query', date of calculation for original quotation | H13: =IF(OR(L16<K20,L16<K21),"Error - check dates","") ->  | J13: Original Date Range - Year/Month | K13: ="U"&14+$N$12*26&":U"&14+$N$12*(YEAR(K10)-1974) -> U14:U14 | L13: ="S"&14+$N$12&":S"&14+IF(E13=YEAR(K10),MONTH(K10),12)*$N$12 -> S14:S14 | Q13: (not anymore, CS 30/7/08) | R13: =E16 ->  | W13: start re-in | X13: end re-in | Y13: dates | AD13: year (see below) and Jan or Feb or March
J14: Post retirement employment | L14: =OR(K20>$M$14,K21>$M$14) ->  | M14: 1995-03-31 | Q14: For Section 3 | R14: For Part D | W14: days | X14: days | AA14: month | AB14: year | AC14: month&year | AD14: of next year (see AF, AG)
L15: last day of calc month | Q15: =S15&" "&$P$75 -> January 2021 | R15: =S15&" "&$E$16 -> January | S15: January | T15: 1 | U15: 1975 | V15: January | W15: 31 | X15: 31 | Y15: 1 | AA15: =MONTH(AC15) -> 1 | AB15: =YEAR(AC15) -> 1900 | AC15: =AC3 -> 00:00:00 | AD15: =MONTH(K10) -> 4 | AE15: =VLOOKUP(AD15,x,3,FALSE) -> April | AF15: 1 | AG15: =VLOOKUP(AF15,x,3,FALSE) -> January
B16: Base calculation date for first quotation | E16: =IF(IF(E12="initial quotation",YEAR(K10),E13)=0,"", IF(E12="initial quotation",YEAR(K10),E13)) ->  | F16: =IF(OR(E12="",AND(E12="Follow-up query",F13="")),"",IF(E12="initial quotation",VLOOKUP(MONTH(K10),x,3,FALSE),F13)) ->  | H16: =IF(ISERROR(IF(K10<K21,"ERROR - Check dates","")),"",IF(K10<K21,"ERROR - Check dates","")) ->  | J16: Calculation date | K16: =DATE(E16,VALUE(VLOOKUP(F16,$S$15:$T$26,2,FALSE)),1) ->  | L16: =DATE(YEAR(Calc_Date),MONTH(Calc_Date)+1,1)-1 ->  | Q16: =S16&" "&$P$75 -> February 2021 | R16: =S16&" "&$E$16 -> February | S16: February | T16: =1+T15 -> 2 | U16: 1976 | V16: February | W16: =IF(MOD(E20,4)=0,29,28) -> 29 | X16: =IF(MOD(E21,4)=0,29,28) -> 29 | Y16: 2 | AA16: =IF(AA15=12,1,1+AA15) -> 2 | AB16: =IF(AA16<AA15,AB15+1,AB15) -> 1900 | AC16: =VLOOKUP(AA16,x,3,FALSE)&" "&AB16 -> February 1900 | AD16: =1+AD15 -> 5 | AE16: May | AF16: =1+AF15 -> 2 | AG16: February
B17: Status at the base Calculation Date (ie active, deferred or pensioner) | H17: =IF(ISERROR(IF(age>75,IF($K$17<3,"Age > 75, Check the Date of Birth",""),"")),"",IF(age>75,IF($K$17<3,"Note age > 75 at calculation date; check date of birth",""),"")) ->  | J17: Status | K17: =VALUE(VLOOKUP(E17,M17:N19,2,FALSE)) ->  | M17: active | N17: 1 | Q17: March 2021 | R17: March | S17: March | T17: =1+T16 -> 3 | U17: 1977 | V17: March | W17: 31 | X17: 31 | Y17: 3 | AA17: 3 | AB17: =IF(AA17<AA16,AB16+1,AB16) -> 1900 | AC17: March 1900 | AD17: =1+AD16 -> 6 | AE17: June | AF17: 3 | AG17: March
M18: deferred | N18: 2 | Q18: April 2021 | R18: April | S18: April | T18: 4 | U18: 1978 | V18: April | W18: 30 | X18: 30 | Y18: 4 | AA18: 4 | AB18: 1900 | AC18: April 1900 | AD18: 7 | AE18: July | AF18: 4 | AG18: April
J19: last reinstatement period | K19: 2000-03-31 | L19: row to use | M19: pensioner | N19: 3 | Q19: May 2021 | R19: May | S19: May | T19: 5 | U19: 1979 | V19: May | W19: 31 | X19: 31 | Y19: 5 | AA19: 5 | AB19: 1900 | AC19: May 1900 | AD19: 8 | AE19: August | AF19: 5 | AG19: May
B20: Start of reinstatement period (year/month/day) | H20: =IF(ISNA(IF(G20>VLOOKUP(F20,V15:X26,2,0),"ERROR - Check Dates","")),"", IF(G20>VLOOKUP(F20,V15:X26,2,0),"ERROR - Check Dates","")) ->  | J20: Start of reinstatement | K20: =DATE(E20,VALUE(VLOOKUP(F20,$S$15:$T$26,2,FALSE)),G20) ->  | L20: =YEAR(K19)-1960 -> 40 | M20: Start of Reinstatement-Year/Month/Day Range | N20: ="$U$16:$U$"&L20 -> $U$16:$U$40 | O20: ="S"&IF(E20=1976,18,15)&":S26" -> S15:S26 | P20: ="Y15:Y"&VLOOKUP(F20,$V$15:$X$26,2,FALSE)+14 ->  | Q20: June 2021 | R20: June | S20: June | T20: 6 | U20: 1980 | V20: June | W20: 30 | X20: 30 | Y20: 6 | AA20: 6 | AB20: 1900 | AC20: June 1900 | AD20: 9 | AE20: September | AF20: 6 | AG20: June
B21: End of reinstatement period (year/month/day) | H21: =IF(ISNA(IF(OR(K21<K20,G21>VLOOKUP(F21,V15:X26,3,0)),"ERROR - Check Dates","")),"",IF(OR(K21<K20,G21>VLOOKUP(F21,V15:X26,3,0)),"ERROR - Check Dates","")) ->  | J21: End of Reinstatement | K21: =DATE(E21,VALUE(VLOOKUP(F21,$S$15:$T$26,2,FALSE)),G21) ->  | M21: End of Reinstatement-Year/Month/Day Range | N21: ="U"&E20-1960&":U"&L20 -> U-1960:U40 | O21: ="S"&IF(E21=E20,VLOOKUP(F20,S15:T26,2,FALSE)+14,15)&":S"&IF(E21=YEAR(K19),17,26) ->  | P21: ="Y"&IF(AND(F21=F20,E21=E20),G20+15,15)&":Y"&VLOOKUP(F21,$V$15:$X$26,3,FALSE)+14 ->  | Q21: July 2021 | R21: July | S21: July | T21: 7 | U21: 1981 | V21: July | W21: 31 | X21: 31 | Y21: 7 | AA21: 7 | AB21: 1900 | AC21: July 1900 | AD21: 10 | AE21: October | AF21: 7 | AG21: July
B22: Calendar reinstatement period rounded down to nearest whole month | E22: =IF(ISNA(K22),"",K22) ->  | G22: =IF(ISBLANK(G20),"",IF(((K20-E11)/365)<16,"Younger than 16 at start of reinstatement. Check dates","")) ->  | J22: Reinstatement period | K22: =P22*12+P23-1*(P24<0)+INT(ABS(P24)/P25) ->  | O22: Years | P22: =YEAR(K21)-YEAR(K20) ->  | Q22: August 2021 | R22: August | S22: August | T22: 8 | U22: 1982 | V22: August | W22: 31 | X22: 31 | Y22: 8 | AA22: =IF(AA21=12,1,1+AA21) -> 8 | AB22: 1900 | AC22: August 1900 | AD22: 11 | AE22: November
B23: (Note this is NOT equal to the FTE service for reinstatement) | O23: Months | P23: =MONTH(K21)-MONTH(K20) ->  | Q23: September 2021 | R23: September | S23: September | T23: 9 | U23: 1983 | V23: September | W23: 30 | X23: 30 | Y23: 9 | AA23: 9 | AB23: 1900 | AC23: September 1900 | AD23: 12 | AE23: December
B24: Type of Salary data | J24: Salary Data Range | K24: ="N24:N"&25-($K$17=1) ->  | M24: Salary Data Choice | N24: Pensionable Salary (ideally at end of reinstatement period) | O24: Days | P24: =DAY(K21)-DAY(K20)+1 ->  | Q24: October 2021 | R24: October | S24: October | T24: 10 | U24: 1984 | V24: October | W24: 31 | X24: 31 | Y24: 10 | AA24: 10 | AB24: 1900 | AC24: October 1900 | AD24: 13
N25: Final Pensionable Salary used in benefit calculation | O25: No of days in month | P25: =DATE(YEAR(K21),MONTH(K21)+1,1)-1-DATE(YEAR(K21),MONTH(K21),1)+1 ->  | Q25: November 2021 | R25: November | S25: November | T25: 11 | U25: 1985 | V25: November | W25: 30 | X25: 30 | Y25: 11 | AA25: 11 | AB25: 1900 | AC25: November 1900 | AD25: 14
B26: =IF(E24="Final Pensionable Salary used in benefit calculation", "Enter date of leaving service","Enter applicable month & year for salary data ") -> Enter applicable month & year for salary data | J26: Salary Date | K26: =DATE(E26,VALUE(VLOOKUP(F26,$S$15:$T$26,2,FALSE)),1) ->  | M26: Salary Date Range - Year/Month | N26: ="U"&IF(E24=N25,E21-1960,E20-1960)&":U"&(YEAR(K10)-1960) -> U-1960:U61 | O26: ="S"&IF(AND(E24=N25,E26=E21),VLOOKUP(F21,S15:T26,2,0)+14,IF(E26=E20,VLOOKUP(F20,S15:T26,2,0)+14,15))&":S"&IF(E26=E16,VLOOKUP(F16,S15:T26,2,0)+14,26) ->  | Q26: December 2021 | R26: December | S26: December | T26: 12 | U26: 1986 | V26: December | W26: 31 | X26: 31 | Y26: 12 | AA26: 12 | AB26: 1900 | AC26: December 1900 | AD26: 15
B27: Annual full time equivalent rate of pensionable salary at date above (FPS where applicable) | J27: Salary | K27: =IF(E24=N25,E27*VLOOKUP(N27,tab,2,0)/VLOOKUP(N27-6,tab,2,0),E27) -> 0 | M27: Month No to look up in tables | N27: =(YEAR(K26)-1976)*12+MONTH(K26)-3 ->  | Q27: =S27&" "&$P$75+1 -> January 2022 | R27: =S27&" "&$E$16+1 ->  | S27: January | T27: 13 | U27: 1987 | V27: January | Y27: 13 | AA27: 1 | AB27: 1901 | AC27: January 1901
B28: Assumed average percentage of conditioned hours worked during re-instatement period | Q28: =S28&" "&$P$75+1 -> February 2022 | R28: =S28&" "&$E$16+1 ->  | S28: February | T28: 14 | U28: 1988 | V28: February | Y28: 14 | AA28: 2 | AB28: 1901 | AC28: February 1901
B29: Member's average contribution rate into the scheme during reinstatement period | E29: 0.06 | Q29: March 2022 | S29: March | T29: 15 | U29: 1989 | V29: March | Y29: 15 | AA29: 3 | AB29: 1901 | AC29: March 1901
Q30: April 2022 | S30: April | T30: 16 | U30: 1990 | V30: April | Y30: 16 | AA30: 4 | AB30: 1901 | AC30: April 1901
B31: =IF(ISNA(IF($K$17=1,"Part B: Data Needed for Active Member Calculation Only","")),"",IF($K$17=1,"Part B: Data Needed for Active Member Calculation Only","")) ->  | Q31: May 2022 | S31: May | T31: 17 | U31: 1991 | V31: May | Y31: 17 | AA31: 5 | AB31: 1901 | AC31: May 1901
B32: =IF(E17="active","Member's marginal tax rate at calculation date","") ->  | H32: =IF(ISNA(IF(AND($K$17=1,E32=""), "Enter Marginal tax-rate","")),"",IF(AND($K$17=1,E32=""), "Enter Marginal tax-rate","")) ->  | J32: Tax Rate Range | K32: =IF($K$17=1,0%,"") ->  | Q32: June 2022 | S32: June | T32: 18 | U32: 1992 | V32: June | Y32: 18 | AA32: 6 | AB32: 1901 | AC32: June 1901
B33: =IF(ISNA(IF($K$17=1,"THIS DOES NOT NEED TO BE COMPLETED FOR ACTIVES","Part B: Data Needed for Calculations for Non-Active Members Only")),"",IF($K$17=1,"",IF($K$17=2,"Part B: Data Needed for Calculations for Deferred Members Only","Part B: Data Needed for Calculations for Pensioners Only"))) ->  | K33: =IF($K$17=1,10%,"") ->  | Q33: July 2022 | S33: July | T33: 19 | U33: 1993 | Y33: 19 | AA33: 7 | AB33: 1901 | AC33: July 1901
B34: =IF(ISNA($K$17),"",IF($K$17=1,"",IF($K$17=2,"Member's preserved lump sum revalued to calculation date excluding reinstated service",IF($K$17=3,"")))) ->  | K34: =IF($K$17=1,20%,"") ->  | Q34: August 2022 | S34: August | T34: 20 | U34: 1994 | Y34: 20 | AA34: 8 | AB34: 1901 | AC34: August 1901
B35: =IF(ISNA($K$17),"",IF($K$17=1,"",IF($K$17=2,"Member's preserved lump sum revalued to calculation date assuming full reinstated service",IF($K$17=3,"Member's retirement lump sum from reinstated service only, based on full reinstatement")))) ->  | F35: =IF(ISNA($K$17),"",IF($K$17=3," (net of any actuarial reduction that is applicable but inclusive of any interest for late payment)","")) ->  | H35: =IF(E35<E34,"Lump sum including reinstated service is less than that excluding","") ->  | K35: =IF($K$17=1,22%,"") ->  | Q35: September 2022 | S35: September | T35: 21 | U35: 1995 | Y35: 21 | AA35: 9 | AB35: 1901 | AC35: September 1901
K36: =IF($K$17=1,40%,"") ->  | Q36: October 2022 | S36: October | T36: 22 | U36: 1996 | Y36: 22 | AA36: 10 | AB36: 1901 | AC36: October 1901
Q37: November 2022 | S37: November | T37: 23 | U37: 1997 | Y37: 23 | AA37: 11 | AB37: 1901 | AC37: November 1901
B38: Part C: Calculation Result | J38: age DoL (section 3) | K38: ='Active Changes'!B53 -> 0.0848733744 | Q38: December 2022 | S38: December | T38: 24 | U38: 1998 | Y38: 24 | AA38: 12 | AB38: 1901 | AC38: December 1901
B39: Cost of full reinstatement | U39: 1999 | Y39: 25 | AA39: 1 | AB39: 1902 | AC39: January 1902
B40: =IF(ISNA(IF($K$17=1,Payment!A63,IF($K$17=2,Payment!A59,IF($K$17=3,Payment!A59,"")))),"",IF($K$17=1,Payment!A63,IF($K$17=2,Payment!A59,IF($K$17=3,Payment!A59,"")))) ->  | E40: =IF(ISNA($K$17),"",IF(OR(ISNA(ROUND(IF($K$17=1,Payment!B15,IF($K$17=2,Payment!D59,IF($K$17=3,Payment!D59,""))),0)),AND($K$17=1,taxRate=""),AND($K$17=2,E34="")),"",IF($K$17=1,Payment!B15,IF($K$17=2,Payment!D59,IF($K$17=3,Payment!D59,""))))) ->  | U40: 2000 | Y40: 26 | AA40: 2 | AB40: 1902 | AC40: February 1902
B41: =IF(ISNA($K$17),"",IF($K$17=1,Payment!A64,IF($K$17=2,Payment!A60,""))) ->  | E41: =IF(ISNA($K$17),"",IF(OR(ISNA(IF($K$17=1,"£"&Payment!B16,IF($K$17=2,Deferred!B14,""))),AND($K$17=1,taxRate=""),AND($K$17=2,E35="")),"",IF($K$17=1,"£"&Payment!B16,IF($K$17=2,Deferred!B14,"")))) ->  | F41: =IF(ISNA($K$17),"",IF(OR(ISNA(IF($K$17=1,"for" &" "&Payment!B6&" "&"months","")),taxRate=""),"",IF($K$17=1,"for" &" "&Payment!B6&" "&"months",""))) ->  | U41: 2001 | Y41: 27 | AA41: 3 | AB41: 1902 | AC41: March 1902
U42: 2002 | Y42: 28 | AA42: 4 | AB42: 1902 | AC42: April 1902
B43: Cost of reinstating one calendar year of part time service | J43: hide cells B43:f45? | U43: 2003 | V43: 43 | Y43: 29 | AA43: =IF(AA42=12,1,1+AA42) -> 5 | AB43: =IF(AA43<AA42,AB42+1,AB42) -> 1902 | AC43: May 1902
B44: =IF(ISNA(IF($K$17=1,Payment!A63,IF($K$17=2,Payment!A59,IF($K$17=3,Payment!A59,"")))),"",IF($K$17=1,Payment!A63,IF($K$17=2,Payment!A59,IF($K$17=3,Payment!A59,"")))) ->  | E44: =IF(ISNA($K$17),"",IF(OR(ISNA(ROUND(IF($K$17=1,Payment!B30,IF($K$17=2,Deferred!B19,IF($K$17=3,Payment!D59/E22*12,""))),0)),AND($K$17=1,taxRate=""),AND($K$17=2,E34="")),"",IF($K$17=1,Payment!B30,IF($K$17=2,Deferred!B19,IF($K$17=3,Payment!D68,""))))) ->  | J44: =Payment!B5>Payment!B20 -> TRUE | U44: 2004 | V44: 44 | Y44: 30 | AA44: 6 | AB44: 1902 | AC44: June 1902
B45: =IF(ISNA($K$17),"",IF($K$17=1,Payment!A64,IF($K$17=2,Payment!A60,""))) ->  | E45: =IF(ISNA($K$17),"",IF(OR(ISNA(IF($K$17=1,"£"& ROUND(Payment!B31,2),IF($K$17=2,Deferred!B26,""))),AND($K$17=1,taxRate=""),AND($K$17=2,E35="")),"",IF($K$17=1,Payment!B31,IF($K$17=2,Deferred!B26,"")))) ->  | F45: =IF(OR(ISNA(IF($K$17=1,"for "&Payment!B21&" months","")),taxRate=""),"",IF($K$17=1,"for "&Payment!B21&" months","")) ->  | U45: 2005 | V45: 45 | Y45: 31 | AA45: 7 | AB45: 1902 | AC45: July 1902
U46: 2006 | V46: 46 | AA46: 8 | AB46: 1902 | AC46: August 1902
U47: 2007 | V47: 47 | AA47: 9 | AB47: 1902 | AC47: =VLOOKUP(AA47,x,3,FALSE)&" "&AB47 -> September 1902
B48: Part D: TO BE COMPLETED AFTER RECEIVING COMPLETED OPTION FORMS FROM MEMBERS | F48: =IF(ISNA(IF(OR(E22<12,Calculation!D6=Calculation!D7),"This member has to purchase the full re-instatement period!!!","")),"",IF(OR(E22<12,Calculation!D6=Calculation!D7),"This member has to purchase the full re-instatement period!!!","")) ->  | U48: 2008 | V48: 48 | AA48: 10 | AB48: 1902 | AC48: October 1902
B49: Is the member buying the full re-instatement period? | H49: =IF(E22<12,"",IF(AND(E49="no",E50=""),"Enter number of years to be purchased",IF(E50*12>E22,"Number of years must not exceed "&INT(E22/12),IF(INT(E50)<>E50,"Error: must be whole number of years","")))) ->  | J49: Full-reinstatement Choice | K49: yes | L49: no | U49: 2009 | V49: 49 | AA49: =IF(AA48=12,1,1+AA48) -> 11 | AB49: =IF(AA49<AA48,AB48+1,AB48) -> 1902 | AC49: November 1902
B50: =IF(AND(E22>=12,E49="no"),"If no, then specify number of whole years being purchased (not more than "&INT(E22/12)&")","") ->  | F50: =IF(E22<12,E40,IF(OR(ISNA($K$17),ISERR(E50*12/E22*E40)),"",IF($K$17=1,"costing £"&ROUND(Payment!B46,0)&",",""))) ->  | G50: =IF(ISNA($K$17),"",IF($K$17=1,"or alternatively","")) ->  | J50: No of months reinstated | K50: =IF(AND(E22>=12,E49="no"),E50*12,E22) ->  | U50: 2010 | V50: 50 | AA50: 12 | AB50: 1902 | AC50: December 1902
B51: =IF(OR(ISNA($K$17),E49="yes"),"",IF($K$17=1,"",IF($K$17=2,"Member's preserved lump sum for reinstatement period purchased",""))) ->  | E51: =IF(OR(E49="yes",E49="",ISERR((K50/E22)*(E35-E34))),"",IF($K$17=2,(K50/E22)*(E35-E34),"")) ->  | F51: =IF(OR(ISNA($K$17),E49=""),"",IF($K$17=1,Payment!B37&" monthly deductions of"&" £"&Payment!B47,"")) ->  | J51: possible start month> | K51: =VLOOKUP(F16,$S$15:$T$26,2,FALSE) ->  | L51: (<< this is orig calc date or current calc date) | U51: 2011 | V51: 51 | AA51: 1 | AB51: 1903 | AC51: January 1903
B52: =IF(ISNA($K$17),"",IF($K$17=1,"","Total amount now due to effect reinstatement")) ->  | E52: =IF(OR(ISNA(IF($K$17=1,"",ROUND(IF($E$49="yes",$E$40,$E$40*$K$50/$E$22),0))),E49=""),"",IF($K$17=1,"",ROUND(IF($E$49="yes",$E$40,$E$40*$K$50/$E$22),0))) ->  | F52: =IF(ISNA($K$17),"",IF($K$17=1,"starting with payslip for","")) ->  | G52: =IF(ISNA($K$17),"",IF($K$17=1,"and ending with","")) ->  | J52: Start of Payment Range | K52: =IF($K$17=1,"r"&K51+14&":r"&K51+20,0) ->  | L52: < could simplify | U52: 2012 | V52: 52 | AA52: 2 | AB52: 1903 | AC52: February 1903
B53: =IF(E10="","",IF(ISNA($K$17),"",IF($K$17=1,"Enter first deduction month in cell F53",IF($K$17=2,"Cash amount to be paid at the point of reinstatement",IF(AND($K$17=3,E49="no"),"Member's retirement lump sum for partially reinstated service (net of actuarial reduction but including interest)",""))))) ->  | G53: =IF(OR(ISNA($K$17),F53=""),"",IF($K$17=1,Payment!M41&" "&Payment!N41,"")) ->  | H53: =IF(ISNA($K$17),"",IF($K$17<>1,"",IF(F53="","Enter first deduction month in cell F53",""))) ->  | J53: Start of Payment Date | K53: =DATE(YEAR(Payment!L37),MONTH(Payment!L37),DAY(Payment!L37)) -> 1900-01-01 | U53: 2013 | V53: 53 | AA53: 3 | AB53: 1903 | AC53: March 1903
B54: =IF(ISNA($K$17),"",IF($K$17=2,"Remaining amount of outstanding debt after cash payment (if any)",IF($K$17=3,"Balance if any to be deducted from ongoing pension payments",""))) ->  | E54: =IF(ISNA($K$17),"",IF($K$17=2,E52-E53,IF(AND($K$17=3,E49="yes"),MAX(0,E52-E35),IF(AND($K$17=3,E49="no"),MAX(0,E52-E53),"")))) ->  | J54: End of Payment Date | K54: =DATE(YEAR(Payment!L41),MONTH(Payment!L41),DAY(Payment!L41)) ->  | U54: 2014 | V54: 54 | AA54: 4 | AB54: 1903 | AC54: April 1903
B55: =IF(ISNA($K$17),"",IF($K$17=2,"Percentage deduction expected from the member's lump sum at eligible retirement date","")) ->  | E55: =IF(OR(ISNA(IF($K$17=2,Deferred!B38,"")),E53=""),"",IF($K$17=2,Deferred!B38,"")) ->  | U55: 2015 | V55: 55 | AA55: 5 | AB55: 1903 | AC55: May 1903
J56: =AND(E49="NO",E50="") -> FALSE | K56: IF($K$17=1,"V"&VALUE(VLOOKUP(F16,$S$15:$T$26,2,FALSE))+14&":V"&VALUE(VLOOKUP(F16,$S$15:$T$26,2,FALSE))+20,0) | U56: 2016 | V56: 56 | AA56: 6 | AB56: 1903 | AC56: June 1903
J57: =IF(AND(E49="no",E50=""),"Enter number of years to be purchased",IF(E50*12>E22,"Number of years must not exceed "&INT(E22/12),IF(INT(E50)<>E50,"Error: must be whole number of years",""))) ->  | K57: IF((P80*R80)=0,"r14","r"&R75+14&IF(P78>P75,":r"&R78+26,":r"&R78+14)) | U57: 2017 | V57: 57 | AA57: 7 | AB57: 1903 | AC57: July 1903
B58: Section 2: Calculation of amount of contributions available for tax relief (This section is no longer available) | J58: =AND(E49="NO",E50="") -> FALSE | K58: =IF($K$17=1,"r"&MONTH(K10)+14&":r"&MONTH(K10)+20,0) ->  | L58: < use this? | U58: 2018 | V58: 58 | AA58: 8 | AB58: 1903 | AC58: August 1903
B59: The member should satisfy themselves (taking advice if required) as to whether or not payment of the Preston contributions will be subject to tax relief | U59: 2019 | V59: 59 | AA59: 9 | AB59: 1903 | AC59: September 1903
H60: =IF(OR(F60="",E61="",E62=""),"",IF(F64*12<Payment!B46,"Lump sum exceeds limit for tax relief: Payment by lump sum not recommended","")) ->  | U60: 2020 | V60: 60 | AA60: 10 | AB60: 1903 | AC60: October 1903
U61: 2021 | V61: 61 | AA61: 11 | AB61: 1903 | AC61: November 1903
U62: 2022 | V62: 62 | AA62: 12 | AB62: 1903 | AC62: December 1903
H63: =IF(F60=0,"",IF(ISERROR(IF(F64<Payment!B47,"Repayment instalments exceed limit for tax relief: special calculation may be required","")),"",IF(F64<Payment!B47,"Repayment instalments exceed limit for tax relief: special calculation may be required",""))) ->  | U63: 2023 | V63: 63 | AA63: 1 | AB63: 1904 | AC63: January 1904
U64: 2024 | V64: 64 | AA64: 2 | AB64: 1904 | AC64: February 1904
U65: 2025 | V65: 65 | AA65: 3 | AB65: 1904 | AC65: March 1904
U66: 2026 | V66: 66 | AA66: 4 | AB66: 1904 | AC66: April 1904
AA67: 5 | AB67: 1904 | AC67: May 1904
B68: SECTION 3: Calculation of outstanding debt for members who do not complete repayment before ceasing to be active | AA68: 6 | AB68: 1904 | AC68: June 1904
AA69: 7 | AB69: 1904 | AC69: July 1904
AA70: 8 | AB70: 1904 | AC70: August 1904
B71: =IF(ISERROR(IF(OR(ISNUMBER(E40)=FALSE,VALUE(E41)<=0,$K$17<>1),"IF USING THIS SECTION PLEASE COMPLETE SECTION 1 AS ACTIVE","")),"",IF(OR(ISNUMBER(E40)=FALSE,VALUE(E41)<=0,$K$17<>1),"IF USING THIS SECTION PLEASE COMPLETE SECTION 1 AS ACTIVE","")) ->  | N71: must be active to use Section 3 | AA71: 9 | AB71: 1904 | AC71: September 1904
B72: =IF(ISNA($K$17),"",IF($K$17=1,"Part A: Data Needed","")) ->  | G72: =IF(ISNA(IF(OR(K17=2,K17=3),"",IF(AND(K17=1,(P80*R80)<1),"Inactive as payments already ended",""))),"",IF(OR(K17=2,K17=3),"",IF(AND(K17=1,(P80*R80)<1),"Inactive as payments already ended",""))) ->  | N72: Section 3 - Date of leaving (range fr cont start to now + 3 months) | AA72: 10 | AB72: 1904 | AC72: October 1904
B73: =IF(ISNA($K$17),"",IF($K$17=1,"Month of Final Employee Contribution (assumed to be final day of month)","")) ->  | G73: =IF(ISNA(IF(DoL<K10,"ERROR - Check Dates","")),"",IF(DoL<(AC5),"ERROR - Check Dates1",IF(N74>R79,"ERROR - Check Dates2",""))) ->  | J73: Date of leaving | K73: =DATE(YEAR(E73),MONTH(E73)+1,1)-1 -> 1900-01-31 | L73: Range for Section 3 year/month | M73: =IF((P80*R80)=0,"U14","U"&P75-1960&":U"&P78-1960) ->  | N73: =AC9 ->  | O73: 3 months before Current Date | P73: =DATE(YEAR(K10),MONTH(K10)-3,DAY(K10)) -> 2021-01-15 | AA73: 11 | AB73: 1904 | AC73: November 1904
B74: =IF(ISNA($K$17),"",IF($K$17=1,"Member's preserved lump sum (including all reinstated service) at date of leaving service","")) ->  | M74: Final Month of Employee Contributions | N74: =DATE(M75,M76,31) -> 1900-01-31 | O74: Start of Payments Date | P74: =DATE(YEAR(Payment!L37),MONTH(Payment!L37),DAY(Payment!L37)) -> 1900-01-01 | AA74: 12 | AB74: 1904 | AC74: December 1904
M75: =YEAR(E73) -> 1900 | O75: Minimum for Section 3 year | P75: =YEAR(MAX(P73,P74)) -> 2021 | Q75: Minimum for Section 3 month | R75: =MONTH(MAX(P73,P74)) -> 1 | AA75: 1 | AB75: 1905 | AC75: January 1905
M76: =MONTH(E73) -> 1 | O76: 6 months after Current Date | P76: =DATE(YEAR(K10),MONTH(K10)+6,DAY(K10)) -> 2021-10-15 | AA76: 2 | AB76: 1905 | AC76: February 1905
B77: =IF(ISNA($K$17),"",IF($K$17=1,"Amount of outstanding debt at date of leaving (assuming tax relief NOT available) OR","")) ->  | E77: ='Active Changes'!B35 ->  | H77: =IF(E77<0,"ERROR-Check Figures","") ->  | O77: End of Payments Date | P77: =DATE(YEAR(Payment!L41),MONTH(Payment!L41),DAY(Payment!L41)) ->  | AA77: 3 | AB77: 1905 | AC77: March 1905
B78: =IF(ISNA($K$17),"",IF($K$17=1,"Percentage deduction expected from the member's retirement lump sum at eligible retirement date","")) ->  | E78: =IF(OR(ISNA($K$17),E77=""),"",IF($K$17=1,'Active Changes'!B58,"")) ->  | H78: =IF(AND(ISNUMBER(E78)=TRUE,E78>100%),"Check with scheme adminstrators about deduction from lump sum","") ->  | O78: Maximum for Section 3 year | P78: =YEAR(MIN(P76,P77)) ->  | Q78: Maximum for Section 3 month | R78: =MONTH(MIN(P76,P77)) ->  | AA78: 4 | AB78: 1905 | AC78: April 1905
Q79: Maximum Date | R79: =DATE(P78,R78,31) ->  | AA79: 5 | AB79: 1905 | AC79: =VLOOKUP(AA79,x,3,FALSE)&" "&AB79 -> May 1905
B80: Section 4: Calculation for quotation of outstanding debt during deferment period | O80: Check: max > min: years | P80: =IF(ISERR(P75<=P78),ISERR(P75<=P78),P75<=P78)*1 -> 1 | Q80: Check: max > min: months | R80: =IF(P78>=P75,1,IF(ISERR(R75<=R78),ISERR(R75<=R78),AND(P78=P75,NOT(R75>R78)))) ->  | AA80: 6 | AB80: 1905 | AC80: June 1905
B81: For those now in deferred status, either in active or in deferred status at original calculation date | AA81: 7 | AB81: 1905 | AC81: July 1905
AA82: 8 | AB82: 1905 | AC82: August 1905
B83: =IF(ISNA($K$17),"",IF($K$17=3,"","Part A: Data Needed")) ->  | N83: Section 4 date range (to which debt updated to) | AA83: 9 | AB83: 1905 | AC83: September 1905
B84: =IF(ISNA($K$17),"",IF($K$17=3,"","Was the member active or deferred when the original debt was first calculated?")) ->  | H84: =IF(ISBLANK(E84),"",IF(E84<>E17,"Inconsistent Status between","")) ->  | P84: Active | R84: Deferred | AA84: 10 | AB84: 1905 | AC84: October 1905
B85: =IF(ISNA($K$17),"",IF($K$17=3,"","Date as at which the outstanding debt is to be recalculated (assumed to be final day of month)")) ->  | H85: =IF(ISBLANK(E84),"",IF(E84<>E17,"Sections 1 and 4.","")) ->  | J85: Date of recalculation of debt | K85: =DATE(E85,VALUE(VLOOKUP(F85,$S$15:$T$26,2,FALSE))+1,1)-1 ->  | L85: Range for Section 4 year/month | M85: ="U"&IF(E84="active",P100*P87,R100*R87)-1960&":U"&P92-1960 ->  | N85: =IF(E85=AE3,AE9,IF(E85=AG3,AG9,"err")) ->  | O85: Current Date | P85: =K10 -> 2021-04-15 | Q85: Current Date | R85: =K10 -> 2021-04-15 | AA85: 11 | AB85: 1905 | AC85: November 1905
N86: =IF(E84="active",IF((P98*P99)=0,"S14","S"&P88+14&IF(P92>P87,":S"&P96+26,":S"&P96+14)),IF((R98*R99)=0,"S14","S"&R88+14&IF(P92>R87,":S"&P96+26,":S"&P96+14))) ->  | O86: Date of Leaving | P86: =DoL -> 1900-01-31 | Q86: Calculation date | R86: =K16 ->  | AA86: 12 | AB86: 1905 | AC86: December 1905
B87: =IF(ISBLANK(IF($E$84="active","COMPLETE SECTIONS 1 TO 3 FOR AN ACTIVE MEMBER FULLY BEFORE USING SECTION 4",IF($E$84="deferred","COMPLETE SECTION 1 FULLY FOR A DEFERRED MEMBER BEFORE USING SECTION 4",))),"",IF($E$84="active","COMPLETE SECTIONS 1 TO 3 FOR AN ACTIVE MEMBER FULLY BEFORE USING SECTION 4",IF($E$84="deferred","COMPLETE SECTION 1 FULLY FOR A DEFERRED MEMBER BEFORE USING SECTION 4",))) ->  | N87: ="S"&IF(E84="active",P100*P88-MAX(0,(YEAR(P94)-P87)*12-1),R100*R88-MAX(0,(YEAR(P94)-R87)*12-1))+14&":S"&P96+14 ->  | O87: Minimum for Section 4year | P87: =YEAR(MAX(P85,P86)) -> 2021 | Q87: Minimum for Section 4 year | R87: =YEAR(MAX(R85,R86)) ->  | AA87: 1 | AB87: 1906 | AC87: January 1906
B88: =IF(ISNA($K$17),"",IF($K$17=3,"","Part B: Calculation Result")) ->  | N88: this formula will break if more than 1 years difference | O88: Minimum for Section 4 month | P88: =MONTH(MAX(P85,P86)) -> 4 | Q88: Minimum for Section 4 month | R88: =MONTH(MAX(R85,R86)) ->  | AA88: 2 | AB88: 1906 | AC88: February 1906
N89: and when max year hits 2009 | AA89: 3 | AB89: 1906 | AC89: March 1906
B90: =IF(ISNA($K$17),"",IF($K$17=3,"",IF(ISNA(IF($K$17=1,"Original debt at leaving service",IF($K$17=2,"Original Debt at Calculation Date",IF($K$17=3,"ONLY APPLICABLE TO ORIGINALLY ACTIVE OR DEFERRED MEMBERS" )))),"",IF($K$17=1,"Original debt at leaving service",IF($K$17=2,"Original Debt at Calculation Date",IF($K$17=3,"ONLY APPLICABLE TO ORIGINALLY ACTIVE OR DEFERRED MEMBERS" )))))) ->  | E90: =IF(OR(ISNA($K$17),E84=""),"",IF($K$17=1,E77,IF($K$17=2,E54,""))) ->  | H90: =IF(E90<0,"ERROR - Check Figures","") ->  | O90: 3 months after Current Date | P90: =DATE(YEAR(K10),MONTH(K10)+3,DAY(K10)) -> 2021-07-15 | AA90: 4 | AB90: 1906 | AC90: April 1906
O91: Retirement Date | P91: =DATE(YEAR(E11)+65,MONTH(E11),DAY(E11)) -> 1964-12-31 | AA91: 5 | AB91: 1906 | AC91: May 1906
B92: =IF(ISNA($K$17),"",IF($K$17=3,"",IF(ISNA(IF(OR($K$17=1,$K$17=2),"Current value of outstanding debt","ONLY APPLICABLE TO ORIGINALLY ACTIVE OR DEFERRED MEMBERS")),"",IF(OR($K$17=1,$K$17=2),"Current value of outstanding debt","ONLY APPLICABLE TO ORIGINALLY ACTIVE OR DEFERRED MEMBERS")))) ->  | E92: =IF(OR(E84="",E85="",F85=""),"",IF($K$17=1,'Active Changes'!B73,Deferred!B53)) ->  | H92: =IF(E92<-0.5,"ERROR - Check Amounts","") ->  | O92: Maximum for Section 4 year | P92: =YEAR(MIN(P90,P91)) -> 1964 | AA92: 6 | AB92: 1906 | AC92: June 1906
O93: 3 months afetr Current Date | P93: =DATE(YEAR(K10),MONTH(K10)+3,DAY(K10)) -> 2021-07-15 | AA93: 7 | AB93: 1906 | AC93: July 1906
O94: End of year | P94: =DATE(E85,12,1) -> 1900-12-01 | AA94: 8 | AB94: 1906 | AC94: August 1906
O95: Retirement Date | P95: =DATE(YEAR(E11)+60,MONTH(E11),DAY(E11)) -> 1959-12-31 | AA95: 9 | AB95: 1906 | AC95: September 1906
O96: Maximum for Section 4 month | P96: =MONTH(MIN(P93:P95)) -> 12 | AA96: 10 | AB96: 1906 | AC96: October 1906
AA97: 11 | AB97: 1906 | AC97: November 1906
O98: Check: max > min: years | P98: =IF(ISERR(P87<=P92),ISERR(P87<=P92),P87<=P92)*1 -> 0 | Q98: Check: max > min: years | R98: =IF(ISERR(R87<=P92),ISERR(R87<=P92),R87<=P92)*1 -> 1 | AA98: 12 | AB98: 1906 | AC98: December 1906
O99: Check: max > min: months | P99: =IF(ISERR(P88<=P96),ISERR(P88<=P96),OR(P87<>P92,AND(P92=P87,NOT(P88>P96))))*1 -> 1 | Q99: Check: max > min: months | R99: =IF(ISERR(R88<=P96),ISERR(R88<=P96),OR(R87<>P92,AND(P92=R87,NOT(R88>P96))))*1 -> 1 | AA99: 1 | AB99: 1907 | AC99: January 1907
O100: Combined check | P100: =P99*P98 -> 0 | Q100: Combined check | R100: =R99*R98 -> 1 | AA100: 2 | AB100: 1907 | AC100: February 1907
AA101: 3 | AB101: 1907 | AC101: March 1907
AA102: 4 | AB102: 1907 | AC102: April 1907
AA103: 5 | AB103: 1907 | AC103: May 1907
AA104: 6 | AB104: 1907 | AC104: June 1907
AA105: 7 | AB105: 1907 | AC105: July 1907
AA106: 8 | AB106: 1907 | AC106: August 1907
AA107: 9 | AB107: 1907 | AC107: September 1907
AA108: 10 | AB108: 1907 | AC108: October 1907
AA109: 11 | AB109: 1907 | AC109: November 1907
AA110: 12 | AB110: 1907 | AC110: December 1907
AA111: 1 | AB111: 1908 | AC111: =VLOOKUP(AA111,x,3,FALSE)&" "&AB111 -> January 1908
AA112: 2 | AB112: 1908 | AC112: February 1908
AA113: =IF(AA112=12,1,1+AA112) -> 3 | AB113: =IF(AA113<AA112,AB112+1,AB112) -> 1908 | AC113: March 1908
AA114: 4 | AB114: 1908 | AC114: April 1908
AA115: 5 | AB115: 1908 | AC115: May 1908
AA116: 6 | AB116: 1908 | AC116: June 1908
AA117: 7 | AB117: 1908 | AC117: July 1908
AA118: 8 | AB118: 1908 | AC118: August 1908
AA119: 9 | AB119: 1908 | AC119: September 1908
AA120: 10 | AB120: 1908 | AC120: October 1908
AA121: 11 | AB121: 1908 | AC121: November 1908
AA122: 12 | AB122: 1908 | AC122: December 1908
AA123: 1 | AB123: 1909 | AC123: January 1909
AA124: 2 | AB124: 1909 | AC124: February 1909
AA125: 3 | AB125: 1909 | AC125: March 1909
AA126: 4 | AB126: 1909 | AC126: April 1909
AA127: 5 | AB127: 1909 | AC127: May 1909
AA128: 6 | AB128: 1909 | AC128: June 1909
AA129: 7 | AB129: 1909 | AC129: July 1909
AA130: 8 | AB130: 1909 | AC130: August 1909
AA131: 9 | AB131: 1909 | AC131: September 1909

Sheet Payment (hidden)
A1: Date of Calculation | B1: =Calc_Date ->  | C1: =YEAR(B1)&MONTH(B1) -> 
A3: Cost of Full- Reinstatement | B3: formula change | C3: (assume active pre 1995) | D3: consider post-1995 reinstatement (not capped by age 60)
A4: Re-instatement period in years | B4: =(Contributions!K21-Contributions!K20)/365.25 ->  | C4: =(Contributions!K21-Contributions!K20)/365.25 -> 
A5: Re-instatement period in months | B5: =Contributions!E22 ->  | C5: =Contributions!E22 -> 
A6: Repayment Period | B6: =IF(IF((75-age-7/12)*12>=B5,B5,INT((75-age-7/12)*12))<6,6,IF((75-age-7/12)*12>=B5,B5,INT((75-age-7/12)*12))) ->  | C6: =IF(IF((60-age-7/12)*12>=B5,B5,INT((60-age-7/12)*12))<6,6,IF((60-age-7/12)*12>=B5,B5,INT((60-age-7/12)*12))) -> 
A8: Active Members
A9: Column to Look up in Factor Table | B9: =IF(B4<=5,36,IF(B4<=15,37,38)) ->  | C9: =IF(C4<=5,36,IF(C4<=15,37,38)) -> 
A10: Monthly Interest Rate | B10: =VLOOKUP(C1,'Factor Table'!A279:AL600,B9,FALSE) ->  | C10: =VLOOKUP(C1,'Factor Table'!A279:AL600,C9,FALSE) -> 
A11: v | B11: =1/(1+B10) ->  | C11: =1/(1+C10) -> 
A12: Annuity | B12: =(1-B11^B6)/B10 ->  | C12: =(1-C11^C6)/C10 -> 
A14: Assuming tax relief
A15: Lump sum contribution | B15: =IF(Calculation!D6=Calculation!D7,0,ROUND(D63,0)) ->  | C15: =IF(Calculation!D6=Calculation!D7,0,ROUND(D63,0)) -> 
A16: Monthly Deduction | B16: =IF(Calculation!D6=Calculation!D7,0,ROUND(IF(B6>6,D63/B12,D63/6),2)) ->  | C16: =IF(Calculation!D6=Calculation!D7,0,ROUND(IF(C6>6,D63/C12,D63/6),2)) -> 
B17: (above) is this ok? Reg cont for reinst period less than 6 months? (this is ok)
A18: Cost of One Year
A19: Re-instatement period in years | B19: 1
A20: Re-instatement period in months | B20: 12
A21: Repayment Period | B21: =IF(IF((60-age-7/12)*12>=B20,B20,INT((60-age-7/12)*12))<6,6,IF((60-age-7/12)*12>=B20,B20,INT((60-age-7/12)*12))) -> 
A23: Active Members
A24: Column to look up in tables | B24: =IF(B19<=5,36,IF(B19<=15,37,38)) -> 36
A25: Monthly Interest Rate | B25: =VLOOKUP(C1,'Factor Table'!A279:AL600,B24,FALSE) -> 
A26: v | B26: =1/(1+B25) -> 
A27: Annuity | B27: =(1-B26^B21)/B25 -> 
A29: Assuming tax relief
A30: Lump sum contribution | B30: =IF(Calculation!D6=Calculation!D7,0,IF(B5=0,"Not Applicable",ROUND((D63/B5)*12,0))) ->  | J30: Month of calculation date | L30: =MONTH(B1) -> 
A31: Monthly Deduction | B31: =IF(B5=0,"Not Applicable","£"&ROUND(IF(B21>6,B30/B27,B30/6),2)) ->  | J31: Start of payments date | L31: =MONTH(Contributions!F53) -> 1
J32: Test to check if in same year | L32: =(L31<L30)*1 -> 
A33: Cost of actual reinstated period | E33: Start of Payments | F33: End of Payments
A34: Re-instatement period in years | B34: =IF(OR(Contributions!E49="yes",Contributions!E22<12),Payment!B4,Contributions!E50) -> 0 | D34: If retirement date before end of payment date | E34: =DATE(YEAR(Contributions!F53),L31,1) -> 1900-01-01 | F34: =IF(VALUE(B36)<=6,DATE(YEAR(E34)+INT(6/12),MONTH(E34)+MOD(6,12),1),DATE(YEAR(E34)+INT(B36/12),MONTH(E34)+MOD(B36,12),1)) ->  | L34: =L31-L30+L32*12 ->  | M34: months from calculation date
A35: Re-instatement period in months | B35: =IF(OR(Contributions!E49="yes",Contributions!E22<12),Payment!B5,ROUNDDOWN(B34*12,0)) -> 0 | D35: If end of repayment date after retirement date | E35: =DATE(YEAR(Contributions!F53),L31,1) -> 1900-01-01 | F35: =IF(VALUE(B36)<=6,DATE(YEAR(E35)+INT(6/12),MONTH(E35)+MOD(6,12),1),DATE(YEAR(E35)+INT(B36/12),MONTH(E35)+MOD(B36,12),1)) -> 
A36: Repayment Period | B36: =IF((75-age-7/12)*12>=B35,B35,INT((75-age-7/12)*12)) ->  | E36: payment | G36: payment | J36: used in Section 1 Part D
A37: Repayment Period - taking into account reinstatement period of less than 6 mths | B37: =IF(Contributions!E49="","",IF(B36<6,6,B36)) ->  | E37: from | G37: to | J37: First instalment date: | L37: =E34 -> 1900-01-01
E38: =Contributions!F53 -> 0 | F38: =Contributions!F54 -> 0 | G38: =VLOOKUP(MONTH(F34),x,3,FALSE) ->  | H38: =YEAR(F34) ->  | J38: Final instalment date if it falls before retirement | L38: =F34-1 ->  | M38: =VLOOKUP(MONTH(L38),x,3,FALSE) ->  | N38: =YEAR(L38) -> 
J39: Final instalement date if after retirement | L39: =F35-1 ->  | M39: =VLOOKUP(MONTH(L39),x,3,FALSE) ->  | N39: =YEAR(L39) -> 
A40: Active Members
A41: Column to look up in tables | B41: =IF(B34<=5,36,IF(B34<=15,37,38)) -> 36 | J41: Final instalment date used | L41: =MIN(Payment!L38:L39) ->  | M41: =VLOOKUP(MONTH(L41),x,3,FALSE) ->  | N41: =YEAR(L41) -> 
A42: Monthly Interest Rate | B42: =VLOOKUP(C1,'Factor Table'!A279:AL600,B41,FALSE) -> 
A43: v | B43: =1/(1+B42) -> 
A44: Annuity | B44: =(1-B43^B36)/B42 -> 
A45: Assuming tax relief
A46: Lump sum contribution | B46: =IF(Contributions!E49="yes",Payment!B15,ROUND(Payment!D63*B35/B5,0)) -> 
A47: Contributions due monthly | B47: =ROUND(IF(Contributions!E49="","",IF(B36>6,IF(OR(Contributions!E49="yes",Contributions!E22<12),Payment!B16,B46/B44),B46/6)),2) -> 
A51: Deferreds
A52: Lump sum | C52: =Payment!D59 ->  | D52: assuming no tax relief
A53: Contributions due when benefits come into payment | C53: =D60 -> 
A55: Pensioners
A56: Contributions due | C56: =Payment!D59 ->  | D56: assuming no tax relief
A59: Total amount due (assuming tax relief NOT available) | D59: =IF(Calculation!D6=Calculation!D7,0,ROUND(Calculation!H14,0)) -> 
A60: Percentage deduction expected from the member's lump sum at eligible retirement date (if nothing paid now) | D60: =Deferred!B14 -> 
A63: Total amount due (assuming tax relief IS available) OR | D63: =Calculation!H16 -> 
A64: Regular monthly deductions from pay (assuming tax relief IS available) of | D64: =ROUND(IF(B36>6,#REF!,D63/6),2) ->  | E64: ="( from "&E38&" "&F38&" to "&G38&" "&H38&")" -> 
D65: (the above cell D62 is not used?)
A68: Cost of reinstating one year of service for pensioners | D68: =IF(OR(Contributions!E22=0,Calculation!D6=Calculation!D7),"Not Applicable",Payment!D59/Contributions!E22*12) -> 

Sheet Deferred (hidden)
A1: Deferred Pensioners
A2: Information
A3: The contribution that is due can be paid immediatley | B3: =IF(Calculation!D6=Calculation!D7,0,Calculation!H14) ->  | D3: assuming no tax relief
A4: OR
A5: Contribution due if choose to pay when benefits become due
A7: Deduction from benefits
A8: Full Reinstatement
A9: Current age | B9: =age -> 
A10: Retirement age | B10: 60
A11: No. of years to retirement | B11: =B10-B9 -> 
A12: Current Lump sum including extra service | B12: =Contributions!E35 -> 0
A13: Benefit deduction
A14: Percentage of Lump sum deducted | B14: =IF(Calculation!D6=Calculation!D7,0,B3*(1.015)^B11/B12) -> 
A16: If this figure is greater than 100% then the member lump sum on retirment will be zero and the pension will also need to be restricted until the total debt is paid.
A18: Reinstating One Year
A19: Contribution due | B19: =IF(Contributions!E22=0,"Not Applicable",B3/Contributions!E22*12) -> 
A20: Current age | B20: =age -> 
A21: Retirement age | B21: 60
A22: No. of years to retirement | B22: =B21-B20 -> 
A23: Member's preserved lump sum for reinstatement period purchased | B23: =(12/Contributions!E22)*(Contributions!E35-Contributions!E34) -> 
A24: Current Lump sum including extra service | B24: =B23+Contributions!E34 -> 
A25: Benefit deduction
A26: Percentage of Lump sum deducted | B26: =IF(Contributions!E22=0,"Not Applicable",B19*(1.015)^B22/B24) -> 
A28: If this figure is greater than 100% then the member lump sum on retirment will be zero and the pension will also need to be restricted until the total debt is paid.
A30: Actual Reinstatement
A31: Contribution due | B31: =Contributions!E54 -> 
A32: Current age | B32: =age -> 
A33: Retirement age | B33: 60
A34: No. of years to retirement | B34: =B33-B32 -> 
A35: Member's preserved lump sum for reinstatement period purchased | B35: =(Contributions!K50/Contributions!E22)*(Contributions!E35-Contributions!E34) -> 
A36: Current Lump sum including extra service | B36: =B35+Contributions!E34 -> 
A37: Benefit deduction
A38: Percentage of Lump sum deducted | B38: =IF(Contributions!E22=0,"Not Applicable",B31*(1.015)^B34/B36) -> 
A40: If this figure is greater than 100% then the member lump sum on retirment will be zero and the pension will also need to be restricted until the total debt is paid.
A42: Calculation of contributions accrued up to specified date
A43: This section enable a member or employer to calcaute the oustanding contributions at some future point in time
A45: Original debt ( from above) | B45: =B31 ->  | C45: assuming no tax relief | F45: RPI Indices
A46: Reinstatement Date | B46: =DATE(YEAR(Contributions!K16),MONTH(Contributions!K16)+1,1)-1 ->  | D46: =VLOOKUP(H46,'Factor Table'!$AR$6:$AX$962,6,FALSE) ->  | F46: =MONTH(B46) ->  | G46: =YEAR(B46) ->  | H46: =G46&F46 -> 
A48: Date outstanding debt recalculated | B48: =Contributions!K85 ->  | D48: =MAX(VLOOKUP(H48,'Factor Table'!$AR$6:$AX$962,6,FALSE),D46) ->  | F48: =MONTH(B48) ->  | G48: =YEAR(B48) ->  | H48: =G48&F48 -> 
D49: =D48/D46-1 -> 
A50: Interest | B50: =1.5/100 -> 0.015
A51: No. of years since original calculation | B51: =(B48-B46)/365.25 ->  | C51: << altered?
A53: Current value of debt | B53: =B45*(1+B50)^B51*D48/D46 -> 
B55: =B45*(1+B50)^B51 -> 

Sheet Active Changes (hidden)
A1: Change in Actives during repayment period (For Active members only)
A3: Date of leaving active service | B3: =DoL -> 1900-01-31
A5: Start of Payment Date for extra contributions | B5: =Contributions!K53-1 -> 00:00:00
A7: No. of months repaid | B7: =INT(12*(YEAR(B3)-YEAR(B5))+MONTH(B3)-MONTH(B5)) -> 0
A9: Total number of months during repayment period | B9: =Payment!B37 -> 
A11: Number of months repaid/ total to be repaid | B11: =B7/B9 -> 
A13: Proportion of debt outstanding | B13: =1-B11 -> 
A15: Original debt with no tax relief | B15: =Calculation!H14*Payment!B35/Payment!B5 -> 
F16: RPI Indices
A17: Calculation Date | B17: =Contributions!K16 ->  | D17: =VLOOKUP(H17,'Factor Table'!$AR$6:$AW$962,6,FALSE) ->  | F17: =MONTH(B17) ->  | G17: =YEAR(B17) ->  | H17: =G17&F17 ->  | I17: < not used CS 8/10/08
I18: < not used CS 8/10/08
A19: Date of Starting payments | B19: =DoL -> 1900-01-31 | D19: =VLOOKUP(H19,'Factor Table'!$AR$6:$AW$962,6,FALSE) ->  | F19: =MONTH(B19) -> 1 | G19: =YEAR(B19) -> 1900 | H19: =G19&F19 -> 19001 | I19: < not used CS 8/10/08
A20: Interest | B20: =1.5/100 -> 0.015 | I20: < not used CS 8/10/08
I21: < not used CS 8/10/08
A22: Amount outstanding (with interest) | B22: =B15*B13*(1+B20)^(B7/12)*D19/D17 ->  | C22: << not used | I22: < not used CS 8/10/08
A24: Number of months outstanding | B24: =B9-B7 -> 
A26: Column to Look up in Factor Table | B26: =IF((B24/12)<=5,36,IF((B24/12)<=15,37,38)) -> 
A27: Date to look up for interest factor | B27: =IF(TODAY()<B3,TODAY(),B3) -> 1900-01-31 | C27: =YEAR(B27)&MONTH(B27) -> 19001
A30: Monthly Interest Rate | B30: =VLOOKUP(C27,'Factor Table'!A267:AL588,B26,FALSE) ->  | C30: =VLOOKUP(D27,'Factor Table'!B267:AM588,C26,FALSE) ->  | D30: 0.003786793664 | G30: =1+D30 -> 1.003786794 | H30: =G30^12 -> 1.0464
A31: v | B31: =1/(1+B30) -> 
A32: Annuity Monthly | B32: =(1-B31^B24)/B30 -> 
A34: Monthly payment (adjusted for no tax relief) | B34: =Payment!B47*(1-taxRate) ->  | C34: << this is monthly conts if no tax relief available
A35: PV of monthly contribution at date of leaving service | B35: =B34*B32 ->  | C35: << no tax relief
A36: Interest at annuity interest rate (could use RPI +1.5%)
A37: current date | B37: =TODAY() -> 2021-04-15
A38: date of leaving service | B38: =B3 -> 1900-01-31
A39: Discount / interest factor | B39: =(1/(1+B30)^12)^((B38-B37)/365.25) -> 
A40: PV of annuity at currnt date | B40: =B39*B35 -> 
H41: =131.58/(1.0464)^15 -> 66.63830123
A42: Add on interest from date of orig calcs to start date. | B42: TO DO | H42: =16923-66 -> 16857
A47: Information
A48: The contribution that is due can be paid immediately | B48: =B35 ->  | C48: (at date of leaving)
A49: OR
A50: Monthly amount to be deducted from benefits when they become due
A52: Deduction from benefits
A53: Age at date of leaving | B53: =(B3-Contributions!E11)/365.25 -> 0.0848733744
A54: Retirement age | B54: 60
A55: No. of years to retirement | B55: =B54-B53 -> 59.91512663
A56: Current Lump sum including extra service | B56: =Contributions!E74 -> 0
A57: Benefit deduction
A58: Percentage of Lump sum deducted | B58: =B48*(1.015)^B55/B56 -> 
A60: If this figure is greater than 100% then the member lump sum on retirment will be zero and the pension will also need to be restricted until the total debt is paid.
A62: This section enable a memebr or employer to calcaute the oustanding contributions at some future point in time
A64: Original debt ( from above) | B64: =B35 ->  | C64: assuming no tax relief
F65: RPI Indices
A66: Date of Leaving Service calcuations | B66: =DoL -> 1900-01-31 | D66: =VLOOKUP(H66,'Factor Table'!$AR$6:$AX$962,6,FALSE) ->  | F66: =MONTH(B66) -> 1 | G66: =YEAR(B66) -> 1900 | H66: =G66&F66 -> 19001
A68: Date of outstanding contributions | B68: =Contributions!K85 ->  | D68: =MAX(VLOOKUP(H68,'Factor Table'!$AR$6:$AX$962,6,FALSE),D66) ->  | F68: =MONTH(B68) ->  | G68: =YEAR(B68) ->  | H68: =G68&F68 -> 
A70: Interest | B70: =1.5/100 -> 0.015 | D70: =D66/D68 ->  | F70: This does not make sense - adds on a whole years worth of interest
A71: No. of years since deferrment | B71: =(B68-B66)/365.25 ->  | F71: Changed
A73: Current value of debt | B73: =B64*(1+B70)^B71*D68/D66 -> 
A75: 1 + RPI increase (annual) | B75: =(D68/D66)^(1/B71) ->  | E75: < not used
A76: increase (include extra 1.5%) - annual | B76: =B75+0.015 ->  | E76: < not used
E77: < not used
A78: increase factor (rpi + 1.5%) | B78: =B76^B71 ->  | E78: < not used
B79: =B64*B78 ->  | E79: < not used
B80: =B79/B73 -> 

Sheet AnnGenHiddenLists (hidden)
A1: DO NOT REMOVE WORKSHEET
A3: BaseTablesList | C3: ImprovementsList
A4: PCFA00 | C4: CMI2016F-02-1pt25
A5: PCMA00 | C5: CMI2016F-07-1pt5
A6: PFA80 | C6: CMI2016M-02-1pt25
A7: PFA92 | C7: CMI2016M-07-1pt5
A8: PFA92 - 08 | C8: Long Cohort
A9: PFA92-10 | C9: Medium Cohort
A10: PMA80 | C10: PFA80imp
A11: PMA92 | C11: PFA92
A12: PMA92 - 08 | C12: PMA80imp
A13: PMA92-10 | C13: PMA92
A14: PNFA00 | C14: Short Cohort
A15: PNFA00-06 | C15: SMPI-2018imp
A16: PNFA00-08 | C16: UKF2004imp
A17: PNFA00-10 | C17: UKF2006imp
A18: PNMA00 | C18: UKF2006imp_HLE
A19: PNMA00-06 | C19: UKF2006imp_LLE
A20: PNMA00-08 | C20: UKF2008imp
A21: PNMA00-10 | C21: UKF2010imp
A22: S1DFA | C22: UKF2012imp
A23: S1DFA-06 | C23: UKF2014imp
A24: S1DFA-08 | C24: UKf2016HLEimp
A25: S1DFA-10 | C25: UKF2016imp
A26: S1DFA-12 | C26: UKf2016LLEimp
A27: S1DFA-14 | C27: UKM2004imp
A28: S1DFA-16 | C28: UKM2006imp
A29: S1DFA-L | C29: UKM2006imp_HLE
A30: S1DFA-L-06 | C30: UKM2006imp_LLE
A31: S1DFA-L-08 | C31: UKM2008imp
A32: S1DFA-L-10 | C32: UKM2010imp
A33: S1DFA-L-12 | C33: UKM2012imp
A34: S1IFA | C34: UKM2014imp
A35: S1IFA-06 | C35: UKm2016HLEimp
A36: S1IFA-08 | C36: UKM2016imp
A37: S1IFA-10 | C37: UKm2016LLEimp
A38: S1IFA-12 | C38: None
A39: S1IFA-14
A40: S1IFA-16
A41: S1IFA-STSS-16
A42: S1IFA-TPS-16
A43: S1IMA
A44: S1IMA-06
A45: S1IMA-08
A46: S1IMA-10
A47: S1IMA-12
A48: S1IMA-14
A49: S1IMA-16
A50: S1IMA-STSS-16
A51: S1IMA-TPS-16
A52: S1NFA
A53: S1NFA-06
A54: S1NFA-08
A55: S1NFA-10
A56: S1NFA-12
A57: S1NFA-14
A58: S1NFA-16
A59: S1NFA-L
A60: S1NFA-L-06
A61: S1NFA-L-08
A62: S1NFA-L-10
A63: S1NFA-L-12
A64: S1NFA-L-14
A65: S1NFA-L-16
A66: S1NFA-L-STSS
A67: S1NFA-L-STSS-06
A68: S1NFA-L-STSS-08
A69: S1NFA-L-STSS-10
A70: S1NFA-L-STSS-12
A71: S1NFA-L-STSS-14
A72: S1NFA-L-STSS-16
A73: S1NFA-L-TPS
A74: S1NFA-L-TPS-06
A75: S1NFA-L-TPS-08
A76: S1NFA-L-TPS-10
A77: S1NFA-L-TPS-12
A78: S1NFA-L-TPS-14
A79: S1NFA-L-TPS-16
A80: S1NMA
A81: S1NMA-06
A82: S1NMA-08
A83: S1NMA-10
A84: S1NMA-12
A85: S1NMA-14
A86: S1NMA-16
A87: S1NMA-L
A88: S1NMA-L-06
A89: S1NMA-L-08
A90: S1NMA-L-10
A91: S1NMA-L-12
A92: S1NMA-L-14
A93: S1NMA-L-16
A94: S1PFA
A95: S1PFA-06
A96: S1PFA-08
A97: S1PFA-10
A98: S1PFA-12
A99: S1PFA-14
A100: S1PFA-16
A101: S1PMA
A102: S1PMA-06
A103: S1PMA-08
A104: S1PMA-10
A105: S1PMA-12
A106: S1PMA-14
A107: S1PMA-16
A108: S2DFA
A109: S2DFA-12
A110: S2DFA-14
A111: S2DFA-16
A112: S2DFL
A113: S2DFL-12
A114: S2DFL-16
A115: S2IFA
A116: S2IFA-12
A117: S2IFA-14
A118: S2IFA-16
A119: S2IMA
A120: S2IMA-12
A121: S2IMA-14
A122: S2IMA-16
A123: S2NFA
A124: S2NFA-12
A125: S2NFA-14
A126: S2NFA-16
A127: S2NFA-CMI
A128: S2NMA
A129: S2NMA_L-16
A130: S2NMA-12
A131: S2NMA-14
A132: S2NMA-16
A133: S2NMA-CMI
A134: S2PFA
A135: S2PFA-12
A136: S2PFA-14
A137: S2PFA-16
A138: S2PFL
A139: S2PFL-12
A140: S2PFL-16
A141: S2PMA
A142: S2PMA-12
A143: S2PMA-14
A144: S2PMA-16
A145: S2PML
A146: S2PML-12
A147: S2PML-16
A148: SMPI-2018
A149: UKF
A150: UKF2004
A151: UKF2006
A152: UKF2008
A153: UKF2010
A154: UKF2012
A155: UKM
A156: UKM2004
A157: UKM2006
A158: UKM2008
A159: UKM2010
A160: UKM2012

Sheet Factor Table (hidden)
A1: Need Updating | I1: new CS9/3/09
A2: 1 | B2: 2 | C2: 3 | D2: 4 | E2: 5 | F2: 6 | G2: 7 | H2: 8 | I2: 9 | J2: 10 | K2: 11 | L2: 12 | M2: 13 | N2: 14 | O2: 15 | P2: 16 | Q2: 17 | R2: 18 | S2: 19 | T2: 20 | U2: 21 | V2: 22 | W2: 23 | X2: 24 | Y2: 25 | Z2: 26 | AA2: 27 | AB2: 28 | AC2: 29 | AD2: 30 | AE2: 31 | AF2: 32 | AG2: 33 | AH2: 34 | AI2: 35 | AJ2: 36 | AK2: 37 | AL2: 38 | BC2: =MAX(BC5:BC962) -> 543 | BD2: =MAX(BD5:BD962) -> 545 | BE2: =MAX(BE5:BE962) -> 552 | BF2: =MAX(BF5:BF962) -> 544 | BJ2: months | BM2: range
A3: 1 | B3: 2 | C3: 3 | D3: 4 | E3: 5 | F3: 6 | G3: 7 | H3: 8 | I3: 9 | L3: UK Gilt Indices | P3: Index linked real yields (net of inflation) | T3: Index linked real yields (net of inflation) | X3: Index linked real yields (net of inflation) | AB3: Estimated Inflation | AF3: Interest Rate | AJ3: Monthly Interest Rate | AS3: Table to be looked up | BJ3: 6 | BM3: 10
A4: Year&Month | B4: Year | C4: Month | D4: Month No | E4: Earnings Index | F4: Interest Index | G4: Tax rate | H4: RPI | I4: RPIcapped | P4: Inflation 0% | T4: Inflation 5% | X4: Average of 0% and 5% inflation | AO4: =YEAR(AN5) -> 2021 | AQ4: =YEAR(AP5) -> 2022 | AT4: Earnings Index | AU4: Interest Index | AV4: Tax rate | AW4: RPI | AX4: RPI adjusted | BC4: Earnings Index | BD4: Interest Index | BE4: Tax rate | BF4: RPI | BG4: cell of | BI4: cell of
D5: 0 | E5: 0 | F5: 1 | G5: 1 | L5: 5yrs | M5: 10yrs | N5: 15yrs | P5: Up to 5 yrs | Q5: 5-15 yrs | R5: over 15 years | T5: Up to 5 yrs | U5: 5-15 yrs | V5: over 15 years | X5: Up to 5 yrs | Y5: 5-15 yrs | Z5: over 15 years | AB5: Up to 5 yrs | AC5: 5-15 yrs | AD5: over 15 years | AF5: Up to 5 yrs | AG5: 5-15 yrs | AH5: over 15 years | AJ5: Up to 5 yrs | AK5: 5-15 yrs | AL5: over 15 years | AN5: =MAX(AN6:AN4294) -> 2021-11-01 | AO5: =MONTH(AN5) -> 11 | AP5: =MAX(AP6:AP4294) -> 2022-01-01 | AQ5: =MONTH(AP5) -> 1 | AS5: 0 | AT5: 0 | AU5: 1 | AV5: 1 | BC5: n | BD5: n | BE5: n | BF5: n | BG5: latest x | BH5: xn | BI5: ="x(n-"&BJ3&")" -> x(n-6) | BJ5: ="x(n-"&BJ3&")" -> x(n-6) | BK5: j | BL5: j-n | BM5: within range?
A6: =B6&C6 -> 19764 | B6: =ROUNDDOWN((D6+2)/12,0)+1976 -> 1976 | C6: =MOD(D6+2,12)+1 -> 4 | D6: 1 | E6: 1000 | F6: 1000 | G6: 0.65 | AR6: =A6 -> 19764 | AS6: =D6 -> 1 | AT6: =ROUND(IF(ROW()<BC$2,E6,INDIRECT(ADDRESS(BC$2,E$3))*(INDIRECT(ADDRESS(BC$2,E$3))/INDIRECT(ADDRESS(BC6-$BJ$3,E$3)))^((ROW()-BC6)/$BJ$3)*((ROW()-BC6-1)<$BM$3)),0) -> 1000 | AU6: =ROUND(IF(ROW()<BD$2,F6,INDIRECT(ADDRESS(BD$2,F$3))*(INDIRECT(ADDRESS(BD$2,F$3))/INDIRECT(ADDRESS(BD6-$BJ$3,F$3)))^((ROW()-BD6)/$BJ$3)*((ROW()-BD6-1)<$BM$3)),0) -> 1000 | AV6: =MIN(1,ROUND(IF(ROW()<BE$2,G6,INDIRECT(ADDRESS(BE$2,G$3))*(INDIRECT(ADDRESS(BE$2,G$3))/INDIRECT(ADDRESS(BE6-$BJ$3,G$3)))^((ROW()-BE6)/$BJ$3)*((ROW()-BE6-1)<$BM$3)),2)) -> 0.65 | AW6: =ROUND(IF(ROW()<BF$2,H6,INDIRECT(ADDRESS(BF$2,H$3))*(INDIRECT(ADDRESS(BF$2,H$3))/INDIRECT(ADDRESS(BF6-$BJ$3,H$3)))^((ROW()-BF6)/$BJ$3)*((ROW()-BF6-1)<$BM$3)),1) -> 0 | AY6: 1976-04-01 | AZ6: 153.5 | BA6: =(AZ6=AW6)*-1+1 -> 1
A7: 19765 | B7: =ROUNDDOWN((D7+2)/12,0)+1976 -> 1976 | C7: =MOD(D7+2,12)+1 -> 5 | D7: =D6+1 -> 2 | E7: 1010 | F7: 1006 | G7: =G6 -> 0.65 | J7: =E7/E6 -> 1.01 | K7: =F7/F6 -> 1.006 | AR7: 19765 | AS7: 2 | AT7: =ROUND(IF(ROW()<BC$2,E7,INDIRECT(ADDRESS(BC$2,E$3))*(INDIRECT(ADDRESS(BC$2,E$3))/INDIRECT(ADDRESS(BC7-$BJ$3,E$3)))^((ROW()-BC7)/$BJ$3)*((ROW()-BC7-1)<$BM$3)),0) -> 1010 | AU7: =ROUND(IF(ROW()<BD$2,F7,INDIRECT(ADDRESS(BD$2,F$3))*(INDIRECT(ADDRESS(BD$2,F$3))/INDIRECT(ADDRESS(BD7-$BJ$3,F$3)))^((ROW()-BD7)/$BJ$3)*((ROW()-BD7-1)<$BM$3)),0) -> 1006 | AV7: =MIN(1,ROUND(IF(ROW()<BE$2,G7,INDIRECT(ADDRESS(BE$2,G$3))*(INDIRECT(ADDRESS(BE$2,G$3))/INDIRECT(ADDRESS(BE7-$BJ$3,G$3)))^((ROW()-BE7)/$BJ$3)*((ROW()-BE7-1)<$BM$3)),2)) -> 0.65 | AW7: =ROUND(IF(ROW()<BF$2,H7,INDIRECT(ADDRESS(BF$2,H$3))*(INDIRECT(ADDRESS(BF$2,H$3))/INDIRECT(ADDRESS(BF7-$BJ$3,H$3)))^((ROW()-BF7)/$BJ$3)*((ROW()-BF7-1)<$BM$3)),1) -> 0 | AY7: 1976-05-01 | AZ7: 155.2 | BA7: 1
A8: 19766 | B8: 1976 | C8: 6 | D8: =D7+1 -> 3 | E8: 1026 | F8: 1012 | G8: =G6 -> 0.65 | J8: =E8/E7 -> 1.015841584 | K8: =F8/F7 -> 1.005964215 | AN8: =IF(AND(AT8=0,AT7>0),DATE(B8,C8-1,1),"") ->  | AP8: =IF(AND(AU8=0,AU7>0),DATE(B8,C8-1,1),"") ->  | AR8: 19766 | AS8: 3 | AT8: 1026 | AU8: 1012 | AV8: 0.65 | AW8: 0 | AY8: 1976-06-01 | AZ8: 156 | BA8: 1
A9: 19767 | B9: 1976 | C9: 7 | D9: 4 | E9: 1036 | F9: 1019 | G9: =G6 -> 0.65 | J9: 1.009746589 | K9: 1.006916996 | AR9: 19767 | AS9: 4 | AT9: 1036 | AU9: 1019 | AV9: 0.65 | AW9: 0 | AY9: 1976-07-01 | AZ9: 156.3 | BA9: 1
A10: 19768 | B10: 1976 | C10: 8 | D10: 5 | E10: 1046 | F10: 1025 | G10: =G6 -> 0.65 | J10: 1.00965251 | K10: 1.005888126 | AR10: 19768 | AS10: 5 | AT10: 1046 | AU10: 1025 | AV10: 0.65 | AW10: 0 | AY10: 1976-08-01 | AZ10: 158.5 | BA10: 1
A11: 19769 | B11: 1976 | C11: 9 | D11: 6 | E11: 1052 | F11: 1031 | G11: =G6 -> 0.65 | J11: 1.005736138 | K11: 1.005853659 | AR11: 19769 | AS11: 6 | AT11: 1052 | AU11: 1031 | AV11: 0.65 | AW11: 0 | AY11: 1976-09-01 | AZ11: 160.6 | BA11: 1
A12: 197610 | B12: 1976 | C12: 10 | D12: 7 | E12: 1057 | F12: 1038 | G12: =G6 -> 0.65 | J12: 1.004752852 | K12: 1.006789525 | AR12: 197610 | AS12: 7 | AT12: 1057 | AU12: 1038 | AV12: 0.65 | AW12: 0 | AY12: 1976-10-01 | AZ12: 163.5 | BA12: 1
A13: 197611 | B13: 1976 | C13: 11 | D13: 8 | E13: 1072 | F13: 1044 | G13: =G6 -> 0.65 | J13: 1.014191107 | K13: 1.005780347 | AR13: 197611 | AS13: =D13 -> 8 | AT13: 1072 | AU13: 1044 | AV13: 0.65 | AW13: 0 | AY13: 1976-11-01 | AZ13: 165.8 | BA13: 1
A14: 197612 | B14: 1976 | C14: 12 | D14: 9 | E14: 1072 | F14: 1051 | G14: =G6 -> 0.65 | J14: 1 | K14: 1.006704981 | AR14: 197612 | AS14: 9 | AT14: 1072 | AU14: 1051 | AV14: 0.65 | AW14: 0 | AY14: 1976-12-01 | AZ14: 168 | BA14: 1
A15: 19771 | B15: 1977 | C15: 1 | D15: 10 | E15: 1077 | F15: 1058 | G15: =G6 -> 0.65 | J15: 1.004664179 | K15: 1.006660324 | AR15: 19771 | AS15: 10 | AT15: 1077 | AU15: 1058 | AV15: 0.65 | AW15: 0 | AY15: 1977-01-01 | AZ15: 172.4 | BA15: 1
A16: 19772 | B16: 1977 | C16: 2 | D16: 11 | E16: 1082 | F16: 1065 | G16: =G6 -> 0.65 | J16: 1.004642526 | K16: 1.006616257 | AR16: 19772 | AS16: 11 | AT16: 1082 | AU16: 1065 | AV16: 0.65 | AW16: 0 | AY16: 1977-02-01 | AZ16: 174.1 | BA16: 1
A17: 19773 | B17: 1977 | C17: 3 | D17: 12 | E17: 1088 | F17: 1073 | G17: =G6 -> 0.65 | J17: 1.005545287 | K17: 1.007511737 | AR17: 19773 | AS17: 12 | AT17: 1088 | AU17: 1073 | AV17: 0.65 | AW17: 0 | AY17: 1977-03-01 | AZ17: 175.8 | BA17: 1
A18: 19774 | B18: 1977 | C18: 4 | D18: 13 | E18: 1093 | F18: 1080 | G18: 0.66 | J18: 1.004595588 | K18: 1.006523765 | AR18: 19774 | AS18: 13 | AT18: 1093 | AU18: 1080 | AV18: 0.66 | AW18: 0 | AY18: 1977-04-01 | AZ18: 180.3 | BA18: 1
A19: 19775 | B19: 1977 | C19: 5 | D19: 14 | E19: 1098 | F19: 1088 | G19: =G18 -> 0.66 | J19: =E19/E18 -> 1.004574565 | K19: =F19/F18 -> 1.007407407 | AR19: 19775 | AS19: 14 | AT19: 1098 | AU19: 1088 | AV19: 0.66 | AW19: 0 | AY19: 1977-05-01 | AZ19: 181.7 | BA19: 1
A20: 19776 | B20: 1977 | C20: 6 | D20: 15 | E20: 1108 | F20: 1095 | G20: =G18 -> 0.66 | J20: 1.009107468 | K20: 1.006433824 | AR20: 19776 | AS20: 15 | AT20: 1108 | AU20: 1095 | AV20: 0.66 | AW20: 0 | AY20: 1977-06-01 | AZ20: 183.6 | BA20: 1
A21: 19777 | B21: 1977 | C21: 7 | D21: 16 | E21: 1124 | F21: 1103 | G21: =G18 -> 0.66 | J21: 1.014440433 | K21: 1.007305936 | AR21: 19777 | AS21: 16 | AT21: 1124 | AU21: 1103 | AV21: 0.66 | AW21: 0 | AY21: 1977-07-01 | AZ21: 183.8 | BA21: 1
A22: 19778 | B22: 1977 | C22: 8 | D22: 17 | E22: 1124 | F22: 1111 | G22: =G18 -> 0.66 | J22: 1 | K22: 1.007252947 | AR22: 19778 | AS22: 17 | AT22: 1124 | AU22: 1111 | AV22: 0.66 | AW22: 0 | AY22: 1977-08-01 | AZ22: 184.7 | BA22: 1
A23: 19779 | B23: 1977 | C23: 9 | D23: 18 | E23: 1134 | F23: 1119 | G23: =G18 -> 0.66 | J23: 1.008896797 | K23: 1.00720072 | AR23: 19779 | AS23: 18 | AT23: 1134 | AU23: 1119 | AV23: 0.66 | AW23: 0 | AY23: 1977-09-01 | AZ23: 185.7 | BA23: 1
A24: 197710 | B24: 1977 | C24: 10 | D24: 19 | E24: 1149 | F24: 1127 | G24: =G18 -> 0.66 | J24: 1.013227513 | K24: 1.00714924 | AR24: 197710 | AS24: 19 | AT24: 1149 | AU24: 1127 | AV24: 0.66 | AW24: 0 | AY24: 1977-10-01 | AZ24: 186.5 | BA24: 1
A25: 197711 | B25: 1977 | C25: 11 | D25: 20 | E25: 1160 | F25: 1135 | G25: =G18 -> 0.66 | J25: 1.009573542 | K25: 1.007098492 | AR25: 197711 | AS25: 20 | AT25: 1160 | AU25: 1135 | AV25: 0.66 | AW25: 0 | AY25: 1977-11-01 | AZ25: 187.4 | BA25: 1
A26: 197712 | B26: 1977 | C26: 12 | D26: 21 | E26: 1175 | F26: 1143 | G26: =G18 -> 0.66 | J26: 1.012931034 | K26: 1.007048458 | AR26: 197712 | AS26: 21 | AT26: 1175 | AU26: 1143 | AV26: 0.66 | AW26: 0 | AY26: 1977-12-01 | AZ26: 188.4 | BA26: 1
A27: 19781 | B27: 1978 | C27: 1 | D27: 22 | E27: 1180 | F27: 1151 | G27: =G18 -> 0.66 | J27: 1.004255319 | K27: 1.006999125 | AR27: 19781 | AS27: 22 | AT27: 1180 | AU27: 1151 | AV27: 0.66 | AW27: 0 | AY27: 1978-01-01 | AZ27: 189.5 | BA27: 1
A28: 19782 | B28: 1978 | C28: 2 | D28: 23 | E28: 1201 | F28: 1158 | G28: =G18 -> 0.66 | J28: 1.01779661 | K28: 1.006081668 | AR28: 19782 | AS28: 23 | AT28: 1201 | AU28: 1158 | AV28: 0.66 | AW28: 0 | AY28: 1978-02-01 | AZ28: 190.6 | BA28: 1
A29: 19783 | B29: 1978 | C29: 3 | D29: 24 | E29: 1196 | F29: 1167 | G29: =G18 -> 0.66 | J29: 0.9958368027 | K29: 1.007772021 | AR29: 19783 | AS29: 24 | AT29: 1196 | AU29: 1167 | AV29: 0.66 | AW29: 0 | AY29: 1978-03-01 | AZ29: 191.8 | BA29: 1
A30: 19784 | B30: 1978 | C30: 4 | D30: 25 | E30: 1232 | F30: 1175 | G30: 0.67 | J30: 1.030100334 | K30: 1.006855184 | AR30: 19784 | AS30: 25 | AT30: 1232 | AU30: 1175 | AV30: 0.67 | AW30: 0 | AY30: 1978-04-01 | AZ30: 194.6 | BA30: 1
A31: 19785 | B31: 1978 | C31: 5 | D31: 26 | E31: 1237 | F31: 1183 | G31: =G30 -> 0.67 | J31: 1.004058442 | K31: 1.006808511 | AR31: 19785 | AS31: 26 | AT31: 1237 | AU31: 1183 | AV31: 0.67 | AW31: 0 | AY31: 1978-05-01 | AZ31: 195.7 | BA31: 1
A32: 19786 | B32: 1978 | C32: 6 | D32: 27 | E32: 1278 | F32: 1191 | G32: =G30 -> 0.67 | J32: 1.033144705 | K32: 1.006762468 | AR32: 19786 | AS32: 27 | AT32: 1278 | AU32: 1191 | AV32: 0.67 | AW32: 0 | AY32: 1978-06-01 | AZ32: 197.2 | BA32: 1
A33: 19787 | B33: 1978 | C33: 7 | D33: 28 | E33: 1284 | F33: 1200 | G33: =G30 -> 0.67 | J33: 1.004694836 | K33: 1.007556675 | AR33: 19787 | AS33: 28 | AT33: 1284 | AU33: 1200 | AV33: 0.67 | AW33: 0 | AY33: 1978-07-01 | AZ33: 198.1 | BA33: 1
A34: 19788 | B34: 1978 | C34: 8 | D34: 29 | E34: 1278 | F34: 1208 | G34: =G30 -> 0.67 | J34: 0.9953271028 | K34: 1.006666667 | AR34: 19788 | AS34: 29 | AT34: 1278 | AU34: 1208 | AV34: 0.67 | AW34: 0 | AY34: 1978-08-01 | AZ34: 199.4 | BA34: 1
A35: 19789 | B35: 1978 | C35: 9 | D35: 30 | E35: 1304 | F35: 1217 | G35: =G30 -> 0.67 | J35: 1.020344288 | K35: 1.007450331 | AR35: 19789 | AS35: 30 | AT35: 1304 | AU35: 1217 | AV35: 0.67 | AW35: 0 | AY35: 1978-09-01 | AZ35: 200.2 | BA35: 1
A36: 197810 | B36: 1978 | C36: 10 | D36: 31 | E36: 1320 | F36: 1225 | G36: =G30 -> 0.67 | J36: 1.012269939 | K36: 1.006573541 | AR36: 197810 | AS36: 31 | AT36: 1320 | AU36: 1225 | AV36: 0.67 | AW36: 0 | AY36: 1978-10-01 | AZ36: 201.1 | BA36: 1
A37: 197811 | B37: 1978 | C37: 11 | D37: 32 | E37: 1320 | F37: 1234 | G37: =G30 -> 0.67 | J37: 1 | K37: 1.007346939 | AR37: 197811 | AS37: 32 | AT37: 1320 | AU37: 1234 | AV37: 0.67 | AW37: 0 | AY37: 1978-11-01 | AZ37: 202.5 | BA37: 1
A38: 197812 | B38: 1978 | C38: 12 | D38: 33 | E38: 1330 | F38: 1243 | G38: =G30 -> 0.67 | J38: 1.007575758 | K38: 1.007293355 | AR38: 197812 | AS38: 33 | AT38: 1330 | AU38: 1243 | AV38: 0.67 | AW38: 0 | AY38: 1978-12-01 | AZ38: 204.2 | BA38: 1
A39: 19791 | B39: 1979 | C39: 1 | D39: 34 | E39: 1320 | F39: 1252 | G39: =G30 -> 0.67 | J39: 0.992481203 | K39: 1.007240547 | AR39: 19791 | AS39: 34 | AT39: 1320 | AU39: 1252 | AV39: 0.67 | AW39: 0 | AY39: 1979-01-01 | AZ39: 207.2 | BA39: 1
A40: 19792 | B40: 1979 | C40: 2 | D40: 35 | E40: 1376 | F40: 1259 | G40: =G30 -> 0.67 | J40: 1.042424242 | K40: 1.005591054 | AR40: 19792 | AS40: 35 | AT40: 1376 | AU40: 1259 | AV40: 0.67 | AW40: 0 | AY40: 1979-02-01 | AZ40: 208.9 | BA40: 1
A41: 19793 | B41: 1979 | C41: 3 | D41: 36 | E41: 1376 | F41: 1268 | G41: =G30 -> 0.67 | J41: 1 | K41: 1.007148531 | AR41: 19793 | AS41: 36 | AT41: 1376 | AU41: 1268 | AV41: 0.67 | AW41: 0 | AY41: 1979-03-01 | AZ41: 210.6 | BA41: 1
A42: 19794 | B42: 1979 | C42: 4 | D42: 37 | E42: 1397 | F42: 1277 | G42: 0.7 | J42: 1.015261628 | K42: 1.007097792 | AR42: 19794 | AS42: 37 | AT42: 1397 | AU42: 1277 | AV42: 0.7 | AW42: 0 | AY42: 1979-04-01 | AZ42: 214.2 | BA42: 1
A43: 19795 | B43: 1979 | C43: 5 | D43: 38 | E43: 1407 | F43: 1285 | G43: =G42 -> 0.7 | J43: 1.007158196 | K43: 1.006264683 | AR43: 19795 | AS43: 38 | AT43: 1407 | AU43: 1285 | AV43: 0.7 | AW43: 0 | AY43: 1979-05-01 | AZ43: 215.9 | BA43: 1
A44: 19796 | B44: 1979 | C44: 6 | D44: 39 | E44: 1448 | F44: 1294 | G44: =G42 -> 0.7 | J44: 1.029140014 | K44: 1.007003891 | AR44: 19796 | AS44: 39 | AT44: 1448 | AU44: 1294 | AV44: 0.7 | AW44: 0 | AY44: 1979-06-01 | AZ44: 219.6 | BA44: 1
A45: 19797 | B45: 1979 | C45: 7 | D45: 40 | E45: 1490 | F45: 1303 | G45: =G42 -> 0.7 | J45: 1.029005525 | K45: 1.006955178 | AR45: 19797 | AS45: 40 | AT45: 1490 | AU45: 1303 | AV45: 0.7 | AW45: 0 | AY45: 1979-07-01 | AZ45: 229.1 | BA45: 1
A46: 19798 | B46: 1979 | C46: 8 | D46: 41 | E46: 1490 | F46: 1312 | G46: =G42 -> 0.7 | J46: 1 | K46: 1.006907137 | AR46: 19798 | AS46: 41 | AT46: 1490 | AU46: 1312 | AV46: 0.7 | AW46: 0 | AY46: 1979-08-01 | AZ46: 230.9 | BA46: 1
A47: 19799 | B47: 1979 | C47: 9 | D47: 42 | E47: 1490 | F47: 1321 | G47: =G42 -> 0.7 | J47: 1 | K47: 1.006859756 | AR47: 19799 | AS47: 42 | AT47: 1490 | AU47: 1321 | AV47: 0.7 | AW47: 0 | AY47: 1979-09-01 | AZ47: 233.2 | BA47: 1
A48: 197910 | B48: 1979 | C48: 10 | D48: 43 | E48: 1541 | F48: 1330 | G48: =G42 -> 0.7 | J48: 1.034228188 | K48: 1.00681302 | AR48: 197910 | AS48: 43 | AT48: 1541 | AU48: 1330 | AV48: 0.7 | AW48: 0 | AY48: 1979-10-01 | AZ48: 235.6 | BA48: 1
A49: 197911 | B49: 1979 | C49: 11 | D49: 44 | E49: 1572 | F49: 1339 | G49: =G42 -> 0.7 | J49: 1.020116807 | K49: 1.006766917 | AR49: 197911 | AS49: 44 | AT49: 1572 | AU49: 1339 | AV49: 0.7 | AW49: 0 | AY49: 1979-11-01 | AZ49: 237.7 | BA49: 1
A50: 197912 | B50: 1979 | C50: 12 | D50: 45 | E50: 1588 | F50: 1348 | G50: =G42 -> 0.7 | J50: 1.010178117 | K50: 1.006721434 | AR50: 197912 | AS50: 45 | AT50: 1588 | AU50: 1348 | AV50: 0.7 | AW50: 0 | AY50: 1979-12-01 | AZ50: 239.4 | BA50: 1
A51: 19801 | B51: 1980 | C51: 1 | D51: 46 | E51: 1593 | F51: 1357 | G51: =G42 -> 0.7 | J51: 1.003148615 | K51: 1.006676558 | AR51: 19801 | AS51: 46 | AT51: 1593 | AU51: 1357 | AV51: 0.7 | AW51: 0 | AY51: 1980-01-01 | AZ51: 245.3 | BA51: 1
A52: 19802 | B52: 1980 | C52: 2 | D52: 47 | E52: 1634 | F52: 1368 | G52: =G42 -> 0.7 | J52: 1.025737602 | K52: 1.008106116 | AR52: 19802 | AS52: 47 | AT52: 1634 | AU52: 1368 | AV52: 0.7 | AW52: 0 | AY52: 1980-02-01 | AZ52: 248.8 | BA52: 1
A53: 19803 | B53: 1980 | C53: 3 | D53: 48 | E53: 1655 | F53: 1379 | G53: =G42 -> 0.7 | J53: 1.012851897 | K53: 1.008040936 | AR53: 19803 | AS53: 48 | AT53: 1655 | AU53: 1379 | AV53: 0.7 | AW53: 0 | AY53: 1980-03-01 | AZ53: 252.2 | BA53: 1
A54: 19804 | B54: 1980 | C54: 4 | D54: 49 | E54: 1691 | F54: 1390 | G54: 0.7 | J54: 1.021752266 | K54: 1.007976795 | AR54: 19804 | AS54: 49 | AT54: 1691 | AU54: 1390 | AV54: 0.7 | AW54: 0 | AY54: 1980-04-01 | AZ54: 240.8 | BA54: 1
A55: 19805 | B55: 1980 | C55: 5 | D55: 50 | E55: 1706 | F55: 1402 | G55: =G54 -> 0.7 | J55: 1.008870491 | K55: 1.008633094 | AR55: 19805 | AS55: 50 | AT55: 1706 | AU55: 1402 | AV55: 0.7 | AW55: 0 | AY55: 1980-05-01 | AZ55: 263.2 | BA55: 1
A56: 19806 | B56: 1980 | C56: 6 | D56: 51 | E56: 1763 | F56: 1413 | G56: =G54 -> 0.7 | J56: 1.033411489 | K56: 1.007845934 | AR56: 19806 | AS56: 51 | AT56: 1763 | AU56: 1413 | AV56: 0.7 | AW56: 0 | AY56: 1980-06-01 | AZ56: 265.7 | BA56: 1
A57: 19807 | B57: 1980 | C57: 7 | D57: 52 | E57: 1773 | F57: 1425 | G57: =G54 -> 0.7 | J57: 1.00567215 | K57: 1.008492569 | AR57: 19807 | AS57: 52 | AT57: 1773 | AU57: 1425 | AV57: 0.7 | AW57: 0 | AY57: 1980-07-01 | AZ57: 267.9 | BA57: 1
A58: 19808 | B58: 1980 | C58: 8 | D58: 53 | E58: 1809 | F58: 1437 | G58: =G54 -> 0.7 | J58: 1.020304569 | K58: 1.008421053 | AR58: 19808 | AS58: 53 | AT58: 1809 | AU58: 1437 | AV58: 0.7 | AW58: 0 | AY58: 1980-08-01 | AZ58: 268.5 | BA58: 1
A59: 19809 | B59: 1980 | C59: 9 | D59: 54 | E59: 1881 | F59: 1449 | G59: =G54 -> 0.7 | J59: 1.039800995 | K59: 1.008350731 | AR59: 19809 | AS59: 54 | AT59: 1881 | AU59: 1449 | AV59: 0.7 | AW59: 0 | AY59: 1980-09-01 | AZ59: 270.2 | BA59: 1
A60: 198010 | B60: 1980 | C60: 10 | D60: 55 | E60: 1845 | F60: 1461 | G60: =G54 -> 0.7 | J60: 0.980861244 | K60: 1.008281573 | AR60: 198010 | AS60: 55 | AT60: 1845 | AU60: 1461 | AV60: 0.7 | AW60: 0 | AY60: 1980-10-01 | AZ60: 271.9 | BA60: 1
A61: 198011 | B61: 1980 | C61: 11 | D61: 56 | E61: 1866 | F61: 1473 | G61: =G54 -> 0.7 | J61: 1.011382114 | K61: 1.008213552 | AR61: 198011 | AS61: 56 | AT61: 1866 | AU61: 1473 | AV61: 0.7 | AW61: 0 | AY61: 1980-11-01 | AZ61: 274.1 | BA61: 1
A62: 198012 | B62: 1980 | C62: 12 | D62: 57 | E62: 1897 | F62: 1485 | G62: =G54 -> 0.7 | J62: 1.016613076 | K62: 1.00814664 | AR62: 198012 | AS62: 57 | AT62: 1897 | AU62: 1485 | AV62: 0.7 | AW62: 0 | AY62: 1980-12-01 | AZ62: 275.6 | BA62: 1
A63: 19811 | B63: 1981 | C63: 1 | D63: 58 | E63: 1887 | F63: 1498 | G63: =G54 -> 0.7 | J63: 0.9947285187 | K63: 1.008754209 | AR63: 19811 | AS63: 58 | AT63: 1887 | AU63: 1498 | AV63: 0.7 | AW63: 0 | AY63: 1981-01-01 | AZ63: 277.3 | BA63: 1
A64: 19812 | B64: 1981 | C64: 2 | D64: 59 | E64: 1902 | F64: 1509 | G64: =G54 -> 0.7 | J64: 1.007949126 | K64: 1.007343124 | AR64: 19812 | AS64: 59 | AT64: 1902 | AU64: 1509 | AV64: 0.7 | AW64: 0 | AY64: 1981-02-01 | AZ64: 279.8 | BA64: 1
A65: 19813 | B65: 1981 | C65: 3 | D65: 60 | E65: 1892 | F65: 1521 | G65: =G54 -> 0.7 | J65: 0.9947423764 | K65: 1.007952286 | AR65: 19813 | AS65: 60 | AT65: 1892 | AU65: 1521 | AV65: 0.7 | AW65: 0 | AY65: 1981-03-01 | AZ65: 284 | BA65: 1
A66: 19814 | B66: 1981 | C66: 4 | D66: 61 | E66: 1928 | F66: 1534 | G66: 0.7 | J66: 1.019027484 | K66: 1.008547009 | AR66: 19814 | AS66: 61 | AT66: 1928 | AU66: 1534 | AV66: 0.7 | AW66: 0 | AY66: 1981-04-01 | AZ66: 292.2 | BA66: 1
A67: 19815 | B67: 1981 | C67: 5 | D67: 62 | E67: 1933 | F67: 1546 | G67: =G66 -> 0.7 | J67: 1.002593361 | K67: 1.007822686 | AR67: 19815 | AS67: 62 | AT67: 1933 | AU67: 1546 | AV67: 0.7 | AW67: 0 | AY67: 1981-05-01 | AZ67: 294.1 | BA67: 1
A68: 19816 | B68: 1981 | C68: 6 | D68: 63 | E68: 1969 | F68: 1557 | G68: =G66 -> 0.7 | J68: 1.018623901 | K68: 1.007115136 | AR68: 19816 | AS68: 63 | AT68: 1969 | AU68: 1557 | AV68: 0.7 | AW68: 0 | AY68: 1981-06-01 | AZ68: 295.8 | BA68: 1
A69: 19817 | B69: 1981 | C69: 7 | D69: 64 | E69: 1990 | F69: 1568 | G69: =G66 -> 0.7 | J69: 1.010665312 | K69: 1.007064868 | AR69: 19817 | AS69: 64 | AT69: 1990 | AU69: 1568 | AV69: 0.7 | AW69: 0 | AY69: 1981-07-01 | AZ69: 297.1 | BA69: 1
A70: =B70&C70 -> 19818 | B70: 1981 | C70: 8 | D70: 65 | E70: 2046 | F70: 1580 | G70: =G66 -> 0.7 | J70: 1.028140704 | K70: 1.007653061 | AR70: =A70 -> 19818 | AS70: 65 | AT70: 2046 | AU70: 1580 | AV70: 0.7 | AW70: 0 | AY70: 1981-08-01 | AZ70: 299.3 | BA70: =(AZ70=AW70)*-1+1 -> 1
A71: 19819 | B71: =ROUNDDOWN((D71+2)/12,0)+1976 -> 1981 | C71: =MOD(D71+2,12)+1 -> 9 | D71: 66 | E71: 2057 | F71: 1591 | G71: =G66 -> 0.7 | J71: 1.005376344 | K71: 1.006962025 | AR71: 19819 | AS71: 66 | AT71: =ROUND(IF(ROW()<BC$2,E71,INDIRECT(ADDRESS(BC$2,E$3))*(INDIRECT(ADDRESS(BC$2,E$3))/INDIRECT(ADDRESS(BC71-$BJ$3,E$3)))^((ROW()-BC71)/$BJ$3)*((ROW()-BC71-1)<$BM$3)),0) -> 2057 | AU71: =ROUND(IF(ROW()<BD$2,F71,INDIRECT(ADDRESS(BD$2,F$3))*(INDIRECT(ADDRESS(BD$2,F$3))/INDIRECT(ADDRESS(BD71-$BJ$3,F$3)))^((ROW()-BD71)/$BJ$3)*((ROW()-BD71-1)<$BM$3)),0) -> 1591 | AV71: =MIN(1,ROUND(IF(ROW()<BE$2,G71,INDIRECT(ADDRESS(BE$2,G$3))*(INDIRECT(ADDRESS(BE$2,G$3))/INDIRECT(ADDRESS(BE71-$BJ$3,G$3)))^((ROW()-BE71)/$BJ$3)*((ROW()-BE71-1)<$BM$3)),2)) -> 0.7 | AW71: =ROUND(IF(ROW()<BF$2,H71,INDIRECT(ADDRESS(BF$2,H$3))*(INDIRECT(ADDRESS(BF$2,H$3))/INDIRECT(ADDRESS(BF71-$BJ$3,H$3)))^((ROW()-BF71)/$BJ$3)*((ROW()-BF71-1)<$BM$3)),1) -> 0 | AY71: 1981-09-01 | AZ71: 301 | BA71: 1
A72: 198110 | B72: 1981 | C72: 10 | D72: =D71+1 -> 67 | E72: 2067 | F72: 1603 | G72: =G66 -> 0.7 | J72: 1.004861449 | K72: 1.007542426 | AN72: =IF(AND(AT72=0,AT71>0),DATE(B72,C72-1,1),"") ->  | AP72: =IF(AND(AU72=0,AU71>0),DATE(B72,C72-1,1),"") ->  | AR72: 198110 | AS72: 67 | AT72: 2067 | AU72: 1603 | AV72: 0.7 | AW72: 0 | AY72: 1981-10-01 | AZ72: 303.7 | BA72: 1
A73: 198111 | B73: 1981 | C73: 11 | D73: 68 | E73: 2077 | F73: 1615 | G73: =G66 -> 0.7 | J73: 1.004837929 | K73: 1.007485964 | AR73: 198111 | AS73: 68 | AT73: 2077 | AU73: 1615 | AV73: 0.7 | AW73: 0 | AY73: 1981-11-01 | AZ73: 306.9 | BA73: 1
A74: 198112 | B74: 1981 | C74: 12 | D74: 69 | E74: 2088 | F74: 1629 | G74: =G66 -> 0.7 | J74: 1.0052961 | K74: 1.008668731 | AR74: 198112 | AS74: 69 | AT74: 2088 | AU74: 1629 | AV74: 0.7 | AW74: 0 | AY74: 1981-12-01 | AZ74: 308.8 | BA74: 1
A75: 19821 | B75: 1982 | C75: 1 | D75: 70 | E75: 2088 | F75: 1643 | G75: =G66 -> 0.7 | J75: 1 | K75: 1.00859423 | AR75: 19821 | AS75: 70 | AT75: 2088 | AU75: 1643 | AV75: 0.7 | AW75: 0 | AY75: 1982-01-01 | AZ75: 310.6 | BA75: 1
A76: 19822 | B76: 1982 | C76: 2 | D76: 71 | E76: 2119 | F76: 1656 | G76: =G66 -> 0.7 | J76: 1.014846743 | K76: 1.007912355 | AR76: 19822 | AS76: 71 | AT76: 2119 | AU76: 1656 | AV76: 0.7 | AW76: 0 | AY76: 1982-02-01 | AZ76: 310.7 | BA76: 1
A77: 19823 | B77: 1982 | C77: 3 | D77: 72 | E77: 2103 | F77: 1670 | G77: =G66 -> 0.7 | J77: 0.9924492685 | K77: 1.008454106 | AR77: 19823 | AS77: =D77 -> 72 | AT77: 2103 | AU77: 1670 | AV77: 0.7 | AW77: 0 | AY77: 1982-03-01 | AZ77: 313.4 | BA77: 1
A78: 19824 | B78: 1982 | C78: 4 | D78: 73 | E78: 2129 | F78: 1683 | G78: 0.7 | J78: 1.012363291 | K78: 1.007784431 | AR78: 19824 | AS78: 73 | AT78: 2129 | AU78: 1683 | AV78: 0.7 | AW78: 0 | AY78: 1982-04-01 | AZ78: 319.7 | BA78: 1
A79: 19825 | B79: 1982 | C79: 5 | D79: 74 | E79: 2129 | F79: 1695 | G79: =G78 -> 0.7 | J79: 1 | K79: 1.007130125 | AR79: 19825 | AS79: 74 | AT79: 2129 | AU79: 1695 | AV79: 0.7 | AW79: 0 | AY79: 1982-05-01 | AZ79: 322 | BA79: 1
A80: 19826 | B80: 1982 | C80: 6 | D80: 75 | E80: 2165 | F80: 1707 | G80: =G78 -> 0.7 | J80: 1.016909347 | K80: 1.007079646 | AR80: 19826 | AS80: 75 | AT80: 2165 | AU80: 1707 | AV80: 0.7 | AW80: 0 | AY80: 1982-06-01 | AZ80: 322.9 | BA80: 1
A81: 19827 | B81: 1982 | C81: 7 | D81: 76 | E81: 2211 | F81: 1719 | G81: =G78 -> 0.7 | J81: 1.021247113 | K81: 1.007029877 | AR81: 19827 | AS81: 76 | AT81: 2211 | AU81: 1719 | AV81: 0.7 | AW81: 0 | AY81: 1982-07-01 | AZ81: 323 | BA81: 1
A82: 19828 | B82: 1982 | C82: 8 | D82: 77 | E82: 2206 | F82: 1732 | G82: =G78 -> 0.7 | J82: 0.9977385798 | K82: 1.007562536 | AR82: 19828 | AS82: 77 | AT82: 2206 | AU82: 1732 | AV82: 0.7 | AW82: 0 | AY82: 1982-08-01 | AZ82: 323.1 | BA82: 1
A83: 19829 | B83: 1982 | C83: 9 | D83: 78 | E83: 2196 | F83: 1744 | G83: =G78 -> 0.7 | J83: =E83/E82 -> 0.9954669084 | K83: =F83/F82 -> 1.006928406 | AR83: 19829 | AS83: 78 | AT83: 2196 | AU83: 1744 | AV83: 0.7 | AW83: 0 | AY83: 1982-09-01 | AZ83: 322.9 | BA83: 1
A84: 198210 | B84: 1982 | C84: 10 | D84: 79 | E84: 2222 | F84: 1757 | G84: =G78 -> 0.7 | J84: 1.011839709 | K84: 1.007454128 | AR84: 198210 | AS84: 79 | AT84: 2222 | AU84: 1757 | AV84: 0.7 | AW84: 0 | AY84: 1982-10-01 | AZ84: 324.5 | BA84: 1
A85: 198211 | B85: 1982 | C85: 11 | D85: 80 | E85: 2253 | F85: 1768 | G85: =G78 -> 0.7 | J85: 1.013951395 | K85: 1.006260672 | AR85: 198211 | AS85: 80 | AT85: 2253 | AU85: 1768 | AV85: 0.7 | AW85: 0 | AY85: 1982-11-01 | AZ85: 326.1 | BA85: 1
A86: 198212 | B86: 1982 | C86: 12 | D86: 81 | E86: 2247 | F86: 1779 | G86: =G78 -> 0.7 | J86: 0.9973368842 | K86: 1.006221719 | AR86: 198212 | AS86: 81 | AT86: 2247 | AU86: 1779 | AV86: 0.7 | AW86: 0 | AY86: 1982-12-01 | AZ86: 325.5 | BA86: 1
A87: 19831 | B87: 1983 | C87: 1 | D87: 82 | E87: 2273 | F87: 1790 | G87: =G78 -> 0.7 | J87: 1.011570984 | K87: 1.006183249 | AR87: 19831 | AS87: 82 | AT87: 2273 | AU87: 1790 | AV87: 0.7 | AW87: 0 | AY87: 1983-01-01 | AZ87: 325.9 | BA87: 1
A88: 19832 | B88: 1983 | C88: 2 | D88: 83 | E88: 2314 | F88: 1800 | G88: =G78 -> 0.7 | J88: 1.018037835 | K88: 1.005586592 | AR88: 19832 | AS88: 83 | AT88: 2314 | AU88: 1800 | AV88: 0.7 | AW88: 0 | AY88: 1983-02-01 | AZ88: 327.3 | BA88: 1
A89: 19833 | B89: 1983 | C89: 3 | D89: 84 | E89: 2289 | F89: 1811 | G89: =G78 -> 0.7 | J89: 0.9891961971 | K89: 1.006111111 | AR89: 19833 | AS89: 84 | AT89: 2289 | AU89: 1811 | AV89: 0.7 | AW89: 0 | AY89: 1983-03-01 | AZ89: 327.9 | BA89: 1
A90: 19834 | B90: 1983 | C90: 4 | D90: 85 | E90: 2325 | F90: 1822 | G90: 0.7 | J90: 1.015727392 | K90: 1.006073992 | AR90: 19834 | AS90: 85 | AT90: 2325 | AU90: 1822 | AV90: 0.7 | AW90: 0 | AY90: 1983-04-01 | AZ90: 332.5 | BA90: 1
A91: 19835 | B91: 1983 | C91: 5 | D91: 86 | E91: 2340 | F91: 1833 | G91: =G90 -> 0.7 | J91: 1.006451613 | K91: 1.006037322 | AR91: 19835 | AS91: 86 | AT91: 2340 | AU91: 1833 | AV91: 0.7 | AW91: 0 | AY91: 1983-05-01 | AZ91: 333.9 | BA91: 1
A92: 19836 | B92: 1983 | C92: 6 | D92: 87 | E92: 2345 | F92: 1844 | G92: =G90 -> 0.7 | J92: 1.002136752 | K92: 1.006001091 | AR92: 19836 | AS92: 87 | AT92: 2345 | AU92: 1844 | AV92: 0.7 | AW92: 0 | AY92: 1983-06-01 | AZ92: 334.7 | BA92: 1
A93: 19837 | B93: 1983 | C93: 7 | D93: 88 | E93: 2376 | F93: 1855 | G93: =G90 -> 0.7 | J93: 1.013219616 | K93: 1.005965293 | AR93: 19837 | AS93: 88 | AT93: 2376 | AU93: 1855 | AV93: 0.7 | AW93: 0 | AY93: 1983-07-01 | AZ93: 336.5 | BA93: 1
A94: 19838 | B94: 1983 | C94: 8 | D94: 89 | E94: 2366 | F94: 1867 | G94: =G90 -> 0.7 | J94: 0.9957912458 | K94: 1.006469003 | AR94: 19838 | AS94: 89 | AT94: 2366 | AU94: 1867 | AV94: 0.7 | AW94: 0 | AY94: 1983-08-01 | AZ94: 338 | BA94: 1
A95: 19839 | B95: 1983 | C95: 9 | D95: 90 | E95: 2376 | F95: 1880 | G95: =G90 -> 0.7 | J95: 1.004226543 | K95: 1.006963042 | AR95: 19839 | AS95: 90 | AT95: 2376 | AU95: 1880 | AV95: 0.7 | AW95: 0 | AY95: 1983-09-01 | AZ95: 339.5 | BA95: 1
A96: 198310 | B96: 1983 | C96: 10 | D96: 91 | E96: 2402 | F96: 1892 | G96: =G90 -> 0.7 | J96: 1.010942761 | K96: 1.006382979 | AR96: 198310 | AS96: 91 | AT96: 2402 | AU96: 1892 | AV96: 0.7 | AW96: 0 | AY96: 1983-10-01 | AZ96: 340.7 | BA96: 1
A97: 198311 | B97: 1983 | C97: 11 | D97: 92 | E97: 2407 | F97: 1905 | G97: =G90 -> 0.7 | J97: 1.002081599 | K97: 1.006871036 | AR97: 198311 | AS97: 92 | AT97: 2407 | AU97: 1905 | AV97: 0.7 | AW97: 0 | AY97: 1983-11-01 | AZ97: 341.9 | BA97: 1
A98: 198312 | B98: 1983 | C98: 12 | D98: 93 | E98: 2418 | F98: 1918 | G98: =G90 -> 0.7 | J98: 1.004570004 | K98: 1.006824147 | AR98: 198312 | AS98: 93 | AT98: 2418 | AU98: 1918 | AV98: 0.7 | AW98: 0 | AY98: 1983-12-01 | AZ98: 342.8 | BA98: 1
A99: 19841 | B99: 1984 | C99: 1 | D99: 94 | E99: 2433 | F99: 1931 | G99: =G90 -> 0.7 | J99: 1.006203474 | K99: 1.006777894 | AR99: 19841 | AS99: 94 | AT99: 2433 | AU99: 1931 | AV99: 0.7 | AW99: 0 | AY99: 1984-01-01 | AZ99: 342.6 | BA99: 1
A100: 19842 | B100: 1984 | C100: 2 | D100: 95 | E100: 2454 | F100: 1943 | G100: =G90 -> 0.7 | J100: 1.008631319 | K100: 1.006214397 | AR100: 19842 | AS100: 95 | AT100: 2454 | AU100: 1943 | AV100: 0.7 | AW100: 0 | AY100: 1984-02-01 | AZ100: 344 | BA100: 1
A101: 19843 | B101: 1984 | C101: 3 | D101: 96 | E101: 2412 | F101: 1956 | G101: =G90 -> 0.7 | J101: 0.9828850856 | K101: 1.006690685 | AR101: 19843 | AS101: 96 | AT101: 2412 | AU101: 1956 | AV101: 0.7 | AW101: 0 | AY101: 1984-03-01 | AZ101: 345.1 | BA101: 1
A102: 19844 | B102: 1984 | C102: 4 | D102: 97 | E102: 2454 | F102: 1967 | G102: 0.7 | J102: 1.017412935 | K102: 1.005623722 | AR102: 19844 | AS102: 97 | AT102: 2454 | AU102: 1967 | AV102: 0.7 | AW102: 0 | AY102: 1984-04-01 | AZ102: 349.7 | BA102: 1
A103: 19845 | B103: 1984 | C103: 5 | D103: 98 | E103: 2459 | F103: 1979 | G103: =G102 -> 0.7 | J103: 1.00203749 | K103: 1.006100661 | AR103: 19845 | AS103: 98 | AT103: 2459 | AU103: 1979 | AV103: 0.7 | AW103: 0 | AY103: 1984-05-01 | AZ103: 351 | BA103: 1
A104: 19846 | B104: 1984 | C104: 6 | D104: 99 | E104: 2469 | F104: 1990 | G104: =G102 -> 0.7 | J104: 1.004066694 | K104: 1.005558363 | AR104: 19846 | AS104: 99 | AT104: 2469 | AU104: 1990 | AV104: 0.7 | AW104: 0 | AY104: 1984-06-01 | AZ104: 351.9 | BA104: 1
A105: 19847 | B105: 1984 | C105: 7 | D105: 100 | E105: 2500 | F105: 2002 | G105: =G102 -> 0.7 | J105: 1.012555691 | K105: 1.006030151 | AR105: 19847 | AS105: 100 | AT105: 2500 | AU105: 2002 | AV105: 0.7 | AW105: 0 | AY105: 1984-07-01 | AZ105: 351.5 | BA105: 1
A106: 19848 | B106: 1984 | C106: 8 | D106: 101 | E106: 2505 | F106: 2016 | G106: =G102 -> 0.7 | J106: 1.002 | K106: 1.006993007 | AR106: 19848 | AS106: 101 | AT106: 2505 | AU106: 2016 | AV106: 0.7 | AW106: 0 | AY106: 1984-08-01 | AZ106: 354.8 | BA106: 1
A107: 19849 | B107: 1984 | C107: 9 | D107: 102 | E107: 2526 | F107: 2031 | G107: =G102 -> 0.7 | J107: 1.008383234 | K107: 1.007440476 | AR107: 19849 | AS107: 102 | AT107: 2526 | AU107: 2031 | AV107: 0.7 | AW107: 0 | AY107: 1984-09-01 | AZ107: 355.5 | BA107: 1
A108: 198410 | B108: 1984 | C108: 10 | D108: 103 | E108: 2593 | F108: 2045 | G108: =G102 -> 0.7 | J108: 1.026524149 | K108: 1.006893156 | AR108: 198410 | AS108: 103 | AT108: 2593 | AU108: 2045 | AV108: 0.7 | AW108: 0 | AY108: 1984-10-01 | AZ108: 357.7 | BA108: 1
A109: 198411 | B109: 1984 | C109: 11 | D109: 104 | E109: 2562 | F109: 2058 | G109: =G102 -> 0.7 | J109: 0.9880447358 | K109: 1.006356968 | AR109: 198411 | AS109: 104 | AT109: 2562 | AU109: 2058 | AV109: 0.7 | AW109: 0 | AY109: 1984-11-01 | AZ109: 358.8 | BA109: 1
A110: 198412 | B110: 1984 | C110: 12 | D110: 105 | E110: 2567 | F110: 2071 | G110: =G102 -> 0.7 | J110: 1.0019516 | K110: 1.006316812 | AR110: 198412 | AS110: 105 | AT110: 2567 | AU110: 2071 | AV110: 0.7 | AW110: 0 | AY110: 1984-12-01 | AZ110: 358.5 | BA110: 1
A111: 19851 | B111: 1985 | C111: 1 | D111: 106 | E111: 2603 | F111: 2085 | G111: =G102 -> 0.7 | J111: 1.014024153 | K111: 1.006760019 | AR111: 19851 | AS111: 106 | AT111: 2603 | AU111: 2085 | AV111: 0.7 | AW111: 0 | AY111: 1985-01-01 | AZ111: 359.8 | BA111: 1
A112: 19852 | B112: 1985 | C112: 2 | D112: 107 | E112: 2619 | F112: 2098 | G112: =G102 -> 0.7 | J112: 1.006146754 | K112: 1.006235012 | AR112: 19852 | AS112: 107 | AT112: 2619 | AU112: 2098 | AV112: 0.7 | AW112: 0 | AY112: 1985-02-01 | AZ112: 362.7 | BA112: 1
A113: 19853 | B113: 1985 | C113: 3 | D113: 108 | E113: 2624 | F113: 2113 | G113: =G102 -> 0.7 | J113: 1.001909126 | K113: 1.007149666 | AR113: 19853 | AS113: 108 | AT113: 2624 | AU113: 2113 | AV113: 0.7 | AW113: 0 | AY113: 1985-03-01 | AZ113: 366.1 | BA113: 1
A114: 19854 | B114: 1985 | C114: 4 | D114: 109 | E114: 2680 | F114: 2128 | G114: 0.7 | J114: 1.021341463 | K114: 1.007098912 | AR114: 19854 | AS114: 109 | AT114: 2680 | AU114: 2128 | AV114: 0.7 | AW114: 0 | AY114: 1985-04-01 | AZ114: 373.9 | BA114: 1
A115: 19855 | B115: 1985 | C115: 5 | D115: 110 | E115: 2670 | F115: 2143 | G115: =G114 -> 0.7 | J115: 0.9962686567 | K115: 1.007048872 | AR115: 19855 | AS115: 110 | AT115: 2670 | AU115: 2143 | AV115: 0.7 | AW115: 0 | AY115: 1985-05-01 | AZ115: 375.6 | BA115: 1
A116: 19856 | B116: 1985 | C116: 6 | D116: 111 | E116: 2691 | F116: 2158 | G116: =G114 -> 0.7 | J116: 1.007865169 | K116: 1.006999533 | AR116: 19856 | AS116: 111 | AT116: 2691 | AU116: 2158 | AV116: 0.7 | AW116: 0 | AY116: 1985-06-01 | AZ116: 376.4 | BA116: 1
A117: 19857 | B117: 1985 | C117: 7 | D117: 112 | E117: 2722 | F117: 2174 | G117: =G114 -> 0.7 | J117: 1.011519881 | K117: 1.007414272 | AR117: 19857 | AS117: 112 | AT117: 2722 | AU117: 2174 | AV117: 0.7 | AW117: 0 | AY117: 1985-07-01 | AZ117: 375.7 | BA117: 1
A118: 19858 | B118: 1985 | C118: 8 | D118: 113 | E118: 2727 | F118: 2189 | G118: =G114 -> 0.7 | J118: 1.001836885 | K118: 1.006899724 | AR118: 19858 | AS118: 113 | AT118: 2727 | AU118: 2189 | AV118: 0.7 | AW118: 0 | AY118: 1985-08-01 | AZ118: 376.7 | BA118: 1
A119: 19859 | B119: 1985 | C119: 9 | D119: 114 | E119: 2778 | F119: 2204 | G119: =G114 -> 0.7 | J119: 1.01870187 | K119: 1.006852444 | AR119: 19859 | AS119: 114 | AT119: 2778 | AU119: 2204 | AV119: 0.7 | AW119: 0 | AY119: 1985-09-01 | AZ119: 376.5 | BA119: 1
A120: 198510 | B120: 1985 | C120: 10 | D120: 115 | E120: 2753 | F120: 2219 | G120: =G114 -> 0.7 | J120: 0.9910007199 | K120: 1.006805808 | AR120: 198510 | AS120: 115 | AT120: 2753 | AU120: 2219 | AV120: 0.7 | AW120: 0 | AY120: 1985-10-01 | AZ120: 377.1 | BA120: 1
A121: 198511 | B121: 1985 | C121: 11 | D121: 116 | E121: 2778 | F121: 2232 | G121: =G114 -> 0.7 | J121: 1.009081003 | K121: 1.005858495 | AR121: 198511 | AS121: 116 | AT121: 2778 | AU121: 2232 | AV121: 0.7 | AW121: 0 | AY121: 1985-11-01 | AZ121: 378.4 | BA121: 1
A122: 198512 | B122: 1985 | C122: 12 | D122: 117 | E122: 2794 | F122: 2247 | G122: =G114 -> 0.7 | J122: 1.005759539 | K122: 1.00672043 | AR122: 198512 | AS122: 117 | AT122: 2794 | AU122: 2247 | AV122: 0.7 | AW122: 0 | AY122: 1985-12-01 | AZ122: 378.9 | BA122: 1
A123: 19861 | B123: 1986 | C123: 1 | D123: 118 | E123: 2820 | F123: 2261 | G123: =G114 -> 0.7 | J123: 1.009305655 | K123: 1.00623053 | AR123: 19861 | AS123: 118 | AT123: 2820 | AU123: 2261 | AV123: 0.7 | AW123: 0 | AY123: 1986-01-01 | AZ123: 379.7 | BA123: 1
A124: 19862 | B124: 1986 | C124: 2 | D124: 119 | E124: 2835 | F124: 2274 | G124: =G114 -> 0.7 | J124: 1.005319149 | K124: 1.005749668 | AR124: 19862 | AS124: 119 | AT124: 2835 | AU124: 2274 | AV124: 0.7 | AW124: 0 | AY124: 1986-02-01 | AZ124: 381.1 | BA124: 1
A125: 19863 | B125: 1986 | C125: 3 | D125: 120 | E125: 2845 | F125: 2289 | G125: =G114 -> 0.7 | J125: 1.003527337 | K125: 1.006596306 | AR125: 19863 | AS125: 120 | AT125: 2845 | AU125: 2289 | AV125: 0.7 | AW125: 0 | AY125: 1986-03-01 | AZ125: 381.6 | BA125: 1
A126: 19864 | B126: 1986 | C126: 4 | D126: 121 | E126: 2907 | F126: 2303 | G126: 0.71 | J126: 1.021792619 | K126: 1.006116208 | AR126: 19864 | AS126: 121 | AT126: 2907 | AU126: 2303 | AV126: 0.71 | AW126: 0 | AY126: 1986-04-01 | AZ126: 385.3 | BA126: 1
A127: 19865 | B127: 1986 | C127: 5 | D127: 122 | E127: 2871 | F127: 2318 | G127: =G126 -> 0.71 | J127: 0.9876160991 | K127: 1.006513244 | AR127: 19865 | AS127: 122 | AT127: 2871 | AU127: 2318 | AV127: 0.71 | AW127: 0 | AY127: 1986-05-01 | AZ127: 386 | BA127: 1
A128: 19866 | B128: 1986 | C128: 6 | D128: 123 | E128: 2907 | F128: 2333 | G128: =G126 -> 0.71 | J128: 1.012539185 | K128: 1.006471096 | AR128: 19866 | AS128: 123 | AT128: 2907 | AU128: 2333 | AV128: 0.71 | AW128: 0 | AY128: 1986-06-01 | AZ128: 385.8 | BA128: 1
A129: 19867 | B129: 1986 | C129: 7 | D129: 124 | E129: 2943 | F129: 2348 | G129: =G126 -> 0.71 | J129: 1.012383901 | K129: 1.00642949 | AR129: 19867 | AS129: 124 | AT129: 2943 | AU129: 2348 | AV129: 0.71 | AW129: 0 | AY129: 1986-07-01 | AZ129: 384.7 | BA129: 1
A130: 19868 | B130: 1986 | C130: 8 | D130: 125 | E130: 2948 | F130: 2363 | G130: =G126 -> 0.71 | J130: 1.001698947 | K130: 1.006388416 | AR130: 19868 | AS130: 125 | AT130: 2948 | AU130: 2363 | AV130: 0.71 | AW130: 0 | AY130: 1986-08-01 | AZ130: 385.9 | BA130: 1
A131: 19869 | B131: 1986 | C131: 9 | D131: 126 | E131: 2954 | F131: 2377 | G131: =G126 -> 0.71 | J131: 1.002035278 | K131: 1.005924672 | AR131: 19869 | AS131: 126 | AT131: 2954 | AU131: 2377 | AV131: 0.71 | AW131: 0 | AY131: 1986-09-01 | AZ131: 387.8 | BA131: 1
A132: 198610 | B132: 1986 | C132: 10 | D132: 127 | E132: 2979 | F132: 2393 | G132: =G126 -> 0.71 | J132: 1.008463101 | K132: 1.006731174 | AR132: 198610 | AS132: 127 | AT132: 2979 | AU132: 2393 | AV132: 0.71 | AW132: 0 | AY132: 1986-10-01 | AZ132: 388.4 | BA132: 1
A133: 198611 | B133: 1986 | C133: 11 | D133: 128 | E133: 3010 | F133: 2409 | G133: =G126 -> 0.71 | J133: 1.010406177 | K133: 1.006686168 | AR133: 198611 | AS133: 128 | AT133: 3010 | AU133: 2409 | AV133: 0.71 | AW133: 0 | AY133: 1986-11-01 | AZ133: 391.7 | BA133: 1
A134: =B134&C134 -> 198612 | B134: 1986 | C134: 12 | D134: 129 | E134: 3005 | F134: 2426 | G134: =G126 -> 0.71 | J134: 0.9983388704 | K134: 1.00705687 | AR134: =A134 -> 198612 | AS134: 129 | AT134: 3005 | AU134: 2426 | AV134: 0.71 | AW134: 0 | AY134: 1986-12-01 | AZ134: 393 | BA134: =(AZ134=AW134)*-1+1 -> 1
A135: 19871 | B135: =ROUNDDOWN((D135+2)/12,0)+1976 -> 1987 | C135: =MOD(D135+2,12)+1 -> 1 | D135: 130 | E135: 3031 | F135: 2443 | G135: =G126 -> 0.71 | H135: 100 | J135: 1.008652246 | K135: 1.00700742 | AR135: 19871 | AS135: 130 | AT135: =ROUND(IF(ROW()<BC$2,E135,INDIRECT(ADDRESS(BC$2,E$3))*(INDIRECT(ADDRESS(BC$2,E$3))/INDIRECT(ADDRESS(BC135-$BJ$3,E$3)))^((ROW()-BC135)/$BJ$3)*((ROW()-BC135-1)<$BM$3)),0) -> 3031 | AU135: =ROUND(IF(ROW()<BD$2,F135,INDIRECT(ADDRESS(BD$2,F$3))*(INDIRECT(ADDRESS(BD$2,F$3))/INDIRECT(ADDRESS(BD135-$BJ$3,F$3)))^((ROW()-BD135)/$BJ$3)*((ROW()-BD135-1)<$BM$3)),0) -> 2443 | AV135: =MIN(1,ROUND(IF(ROW()<BE$2,G135,INDIRECT(ADDRESS(BE$2,G$3))*(INDIRECT(ADDRESS(BE$2,G$3))/INDIRECT(ADDRESS(BE135-$BJ$3,G$3)))^((ROW()-BE135)/$BJ$3)*((ROW()-BE135-1)<$BM$3)),2)) -> 0.71 | AW135: =ROUND(IF(ROW()<BF$2,H135,INDIRECT(ADDRESS(BF$2,H$3))*(INDIRECT(ADDRESS(BF$2,H$3))/INDIRECT(ADDRESS(BF135-$BJ$3,H$3)))^((ROW()-BF135)/$BJ$3)*((ROW()-BF135-1)<$BM$3)),1) -> 100 | AX135: =AW135 -> 100 | AY135: 1987-01-01 | AZ135: 100 | BA135: 0
A136: 19872 | B136: 1987 | C136: 2 | D136: =D135+1 -> 131 | E136: 3052 | F136: 2459 | G136: =G126 -> 0.71 | H136: 100.4 | J136: 1.006928406 | K136: 1.006549325 | AN136: =IF(AND(AT136=0,AT135>0),DATE(B136,C136-1,1),"") ->  | AP136: =IF(AND(AU136=0,AU135>0),DATE(B136,C136-1,1),"") ->  | AR136: 19872 | AS136: 131 | AT136: 3052 | AU136: 2459 | AV136: 0.71 | AW136: 100.4 | AX136: 100.4 | AY136: 1987-02-01 | AZ136: 100.4 | BA136: 0
A137: 19873 | B137: 1987 | C137: 3 | D137: 132 | E137: 3036 | F137: 2476 | G137: =G126 -> 0.71 | H137: 100.6 | J137: 0.994757536 | K137: 1.006913379 | AR137: 19873 | AS137: 132 | AT137: 3036 | AU137: 2476 | AV137: 0.71 | AW137: 100.6 | AX137: 100.6 | AY137: 1987-03-01 | AZ137: 100.6 | BA137: 0
A138: 19874 | B138: 1987 | C138: 4 | D138: 133 | E138: 3093 | F138: 2494 | G138: 0.73 | H138: 101.8 | J138: 1.018774704 | K138: 1.00726979 | AR138: 19874 | AS138: 133 | AT138: 3093 | AU138: 2494 | AV138: 0.73 | AW138: 101.8 | AX138: 101.8 | AY138: 1987-04-01 | AZ138: 101.8 | BA138: 0
A139: 19875 | B139: 1987 | C139: 5 | D139: 134 | E139: 3119 | F139: 2508 | G139: =G138 -> 0.73 | H139: 101.9 | J139: 1.008406078 | K139: 1.005613472 | AR139: 19875 | AS139: 134 | AT139: 3119 | AU139: 2508 | AV139: 0.73 | AW139: 101.9 | AX139: 101.9 | AY139: 1987-05-01 | AZ139: 101.9 | BA139: 0
A140: 19876 | B140: 1987 | C140: 6 | D140: 135 | E140: 3129 | F140: 2522 | G140: =G138 -> 0.73 | H140: 101.9 | J140: 1.003206156 | K140: 1.005582137 | AR140: 19876 | AS140: 135 | AT140: 3129 | AU140: 2522 | AV140: 0.73 | AW140: 101.9 | AX140: 101.9 | AY140: 1987-06-01 | AZ140: 101.9 | BA140: 0
A141: 19877 | B141: 1987 | C141: 7 | D141: 136 | E141: 3175 | F141: 2536 | G141: =G138 -> 0.73 | H141: 101.8 | J141: 1.014701182 | K141: 1.00555115 | AR141: 19877 | AS141: =D141 -> 136 | AT141: 3175 | AU141: 2536 | AV141: 0.73 | AW141: 101.8 | AX141: 101.8 | AY141: 1987-07-01 | AZ141: 101.8 | BA141: 0
A142: 19878 | B142: 1987 | C142: 8 | D142: 137 | E142: 3170 | F142: 2551 | G142: =G138 -> 0.73 | H142: 102.1 | J142: 0.9984251969 | K142: 1.005914826 | AR142: 19878 | AS142: 137 | AT142: 3170 | AU142: 2551 | AV142: 0.73 | AW142: 102.1 | AX142: 102.1 | AY142: 1987-08-01 | AZ142: 102.1 | BA142: 0
A143: 19879 | B143: 1987 | C143: 9 | D143: 138 | E143: 3186 | F143: 2565 | G143: =G138 -> 0.73 | H143: 102.4 | J143: 1.005047319 | K143: 1.005488044 | AR143: 19879 | AS143: 138 | AT143: 3186 | AU143: 2565 | AV143: 0.73 | AW143: 102.4 | AX143: 102.4 | AY143: 1987-09-01 | AZ143: 102.4 | BA143: 0
A144: 198710 | B144: 1987 | C144: 10 | D144: 139 | E144: 3222 | F144: 2580 | G144: =G138 -> 0.73 | H144: 102.9 | J144: 1.011299435 | K144: 1.005847953 | AR144: 198710 | AS144: 139 | AT144: 3222 | AU144: 2580 | AV144: 0.73 | AW144: 102.9 | AX144: 102.9 | AY144: 1987-10-01 | AZ144: 102.9 | BA144: 0
A145: 198711 | B145: 1987 | C145: 11 | D145: 140 | E145: 3263 | F145: 2594 | G145: =G138 -> 0.73 | H145: 103.4 | J145: 1.012725016 | K145: 1.005426357 | AR145: 198711 | AS145: 140 | AT145: 3263 | AU145: 2594 | AV145: 0.73 | AW145: 103.4 | AX145: 103.4 | AY145: 1987-11-01 | AZ145: 103.4 | BA145: 0
A146: 198712 | B146: 1987 | C146: 12 | D146: 141 | E146: 3268 | F146: 2609 | G146: =G138 -> 0.73 | H146: 103.3 | J146: 1.001532332 | K146: 1.005782575 | AR146: 198712 | AS146: 141 | AT146: 3268 | AU146: 2609 | AV146: 0.73 | AW146: 103.3 | AX146: 103.3 | AY146: 1987-12-01 | AZ146: 103.3 | BA146: 0
A147: 19881 | B147: 1988 | C147: 1 | D147: 142 | E147: 3284 | F147: 2624 | G147: =G138 -> 0.73 | H147: 103.3 | J147: =E147/E146 -> 1.004895961 | K147: =F147/F146 -> 1.005749329 | AR147: 19881 | AS147: 142 | AT147: 3284 | AU147: 2624 | AV147: 0.73 | AW147: 103.3 | AX147: 103.3 | AY147: 1988-01-01 | AZ147: 103.3 | BA147: 0
A148: 19882 | B148: 1988 | C148: 2 | D148: 143 | E148: 3304 | F148: 2639 | G148: =G138 -> 0.73 | H148: 103.7 | J148: 1.006090134 | K148: 1.005716463 | AR148: 19882 | AS148: 143 | AT148: 3304 | AU148: 2639 | AV148: 0.73 | AW148: 103.7 | AX148: 103.7 | AY148: 1988-02-01 | AZ148: 103.7 | BA148: 0
A149: 19883 | B149: 1988 | C149: 3 | D149: 144 | E149: 3299 | F149: 2654 | G149: =G138 -> 0.73 | H149: 104.1 | J149: 0.9984866828 | K149: 1.005683971 | AR149: 19883 | AS149: 144 | AT149: 3299 | AU149: 2654 | AV149: 0.73 | AW149: 104.1 | AX149: 104.1 | AY149: 1988-03-01 | AZ149: 104.1 | BA149: 0
A150: 19884 | B150: 1988 | C150: 4 | D150: 145 | E150: 3345 | F150: 2668 | G150: 0.75 | H150: 105.8 | J150: 1.013943619 | K150: 1.005275057 | AR150: 19884 | AS150: 145 | AT150: 3345 | AU150: 2668 | AV150: 0.75 | AW150: 105.8 | AX150: 105.8 | AY150: 1988-04-01 | AZ150: 105.8 | BA150: 0
A151: 19885 | B151: 1988 | C151: 5 | D151: 146 | E151: 3371 | F151: 2684 | G151: =G150 -> 0.75 | H151: 106.2 | J151: 1.007772795 | K151: 1.005997001 | AR151: 19885 | AS151: 146 | AT151: 3371 | AU151: 2684 | AV151: 0.75 | AW151: 106.2 | AX151: 106.2 | AY151: 1988-05-01 | AZ151: 106.2 | BA151: 0
A152: 19886 | B152: 1988 | C152: 6 | D152: 147 | E152: 3397 | F152: 2699 | G152: =G150 -> 0.75 | H152: 106.6 | J152: 1.007712845 | K152: 1.005588674 | AR152: 19886 | AS152: 147 | AT152: 3397 | AU152: 2699 | AV152: 0.75 | AW152: 106.6 | AX152: 106.6 | AY152: 1988-06-01 | AZ152: 106.6 | BA152: 0
A153: 19887 | B153: 1988 | C153: 7 | D153: 148 | E153: 3443 | F153: 2715 | G153: =G150 -> 0.75 | H153: 106.7 | J153: 1.01354136 | K153: 1.005928122 | AR153: 19887 | AS153: 148 | AT153: 3443 | AU153: 2715 | AV153: 0.75 | AW153: 106.7 | AX153: 106.7 | AY153: 1988-07-01 | AZ153: 106.7 | BA153: 0
A154: 19888 | B154: 1988 | C154: 8 | D154: 149 | E154: 3448 | F154: 2731 | G154: =G150 -> 0.75 | H154: 107.9 | J154: 1.001452222 | K154: 1.005893186 | AR154: 19888 | AS154: 149 | AT154: 3448 | AU154: 2731 | AV154: 0.75 | AW154: 107.9 | AX154: 107.9 | AY154: 1988-08-01 | AZ154: 107.9 | BA154: 0
A155: 19889 | B155: 1988 | C155: 9 | D155: 150 | E155: 3485 | F155: 2748 | G155: =G150 -> 0.75 | H155: 108.4 | J155: 1.010730858 | K155: 1.006224826 | AR155: 19889 | AS155: 150 | AT155: 3485 | AU155: 2748 | AV155: 0.75 | AW155: 108.4 | AX155: 108.4 | AY155: 1988-09-01 | AZ155: 108.4 | BA155: 0
A156: 198810 | B156: 1988 | C156: 10 | D156: 151 | E156: 3515 | F156: 2765 | G156: =G150 -> 0.75 | H156: 109.5 | J156: 1.008608321 | K156: 1.006186317 | AR156: 198810 | AS156: 151 | AT156: 3515 | AU156: 2765 | AV156: 0.75 | AW156: 109.5 | AX156: 109.5 | AY156: 1988-10-01 | AZ156: 109.5 | BA156: 0
A157: 198811 | B157: 1988 | C157: 11 | D157: 152 | E157: 3546 | F157: 2781 | G157: =G150 -> 0.75 | H157: 110 | J157: 1.008819346 | K157: 1.005786618 | AR157: 198811 | AS157: 152 | AT157: 3546 | AU157: 2781 | AV157: 0.75 | AW157: 110 | AX157: 110 | AY157: 1988-11-01 | AZ157: 110 | BA157: 0
A158: 198812 | B158: 1988 | C158: 12 | D158: 153 | E158: 3608 | F158: 2798 | G158: =G150 -> 0.75 | H158: 110.3 | J158: 1.01748449 | K158: 1.006112909 | AR158: 198812 | AS158: 153 | AT158: 3608 | AU158: 2798 | AV158: 0.75 | AW158: 110.3 | AX158: 110.3 | AY158: 1988-12-01 | AZ158: 110.3 | BA158: 0
A159: 19891 | B159: 1989 | C159: 1 | D159: 154 | E159: 3588 | F159: 2815 | G159: =G150 -> 0.75 | H159: 111 | J159: 0.9944567627 | K159: 1.006075768 | AR159: 19891 | AS159: 154 | AT159: 3588 | AU159: 2815 | AV159: 0.75 | AW159: 111 | AX159: 111 | AY159: 1989-01-01 | AZ159: 111 | BA159: 0
A160: 19892 | B160: 1989 | C160: 2 | D160: 155 | E160: 3619 | F160: 2831 | G160: =G150 -> 0.75 | H160: 111.8 | J160: 1.008639911 | K160: 1.005683837 | AR160: 19892 | AS160: 155 | AT160: 3619 | AU160: 2831 | AV160: 0.75 | AW160: 111.8 | AX160: 111.8 | AY160: 1989-02-01 | AZ160: 111.8 | BA160: 0
A161: 19893 | B161: 1989 | C161: 3 | D161: 156 | E161: 3603 | F161: 2849 | G161: =G150 -> 0.75 | H161: 112.3 | J161: 0.9955788892 | K161: 1.006358177 | AR161: 19893 | AS161: 156 | AT161: 3603 | AU161: 2849 | AV161: 0.75 | AW161: 112.3 | AX161: 112.3 | AY161: 1989-03-01 | AZ161: 112.3 | BA161: 0
A162: 19894 | B162: 1989 | C162: 4 | D162: 157 | E162: 3670 | F162: 2865 | G162: 0.75 | H162: 114.3 | J162: 1.018595615 | K162: 1.005616006 | AR162: 19894 | AS162: 157 | AT162: 3670 | AU162: 2865 | AV162: 0.75 | AW162: 114.3 | AX162: 114.3 | AY162: 1989-04-01 | AZ162: 114.3 | BA162: 0
A163: 19895 | B163: 1989 | C163: 5 | D163: 158 | E163: 3675 | F163: 2883 | G163: =G162 -> 0.75 | H163: 115 | J163: 1.001362398 | K163: 1.006282723 | AR163: 19895 | AS163: 158 | AT163: 3675 | AU163: 2883 | AV163: 0.75 | AW163: 115 | AX163: 115 | AY163: 1989-05-01 | AZ163: 115 | BA163: 0
A164: 19896 | B164: 1989 | C164: 6 | D164: 159 | E164: 3711 | F164: 2900 | G164: =G162 -> 0.75 | H164: 115.4 | J164: 1.009795918 | K164: 1.005896635 | AR164: 19896 | AS164: 159 | AT164: 3711 | AU164: 2900 | AV164: 0.75 | AW164: 115.4 | AX164: 115.4 | AY164: 1989-06-01 | AZ164: 115.4 | BA164: 0
A165: 19897 | B165: 1989 | C165: 7 | D165: 160 | E165: 3753 | F165: 2918 | G165: =G162 -> 0.75 | H165: 115.5 | J165: 1.011317704 | K165: 1.006206897 | AR165: 19897 | AS165: 160 | AT165: 3753 | AU165: 2918 | AV165: 0.75 | AW165: 115.5 | AX165: 115.5 | AY165: 1989-07-01 | AZ165: 115.5 | BA165: 0
A166: 19898 | B166: 1989 | C166: 8 | D166: 161 | E166: 3747 | F166: 2936 | G166: =G162 -> 0.75 | H166: 115.8 | J166: 0.998401279 | K166: 1.006168609 | AR166: 19898 | AS166: 161 | AT166: 3747 | AU166: 2936 | AV166: 0.75 | AW166: 115.8 | AX166: 115.8 | AY166: 1989-08-01 | AZ166: 115.8 | BA166: 0
A167: 19899 | B167: 1989 | C167: 9 | D167: 162 | E167: 3820 | F167: 2954 | G167: =G162 -> 0.75 | H167: 116.6 | J167: 1.019482252 | K167: 1.00613079 | AR167: 19899 | AS167: 162 | AT167: 3820 | AU167: 2954 | AV167: 0.75 | AW167: 116.6 | AX167: 116.6 | AY167: 1989-09-01 | AZ167: 116.6 | BA167: 0
A168: 198910 | B168: 1989 | C168: 10 | D168: 163 | E168: 3861 | F168: 2972 | G168: =G162 -> 0.75 | H168: 117.5 | J168: 1.010732984 | K168: 1.006093433 | AR168: 198910 | AS168: 163 | AT168: 3861 | AU168: 2972 | AV168: 0.75 | AW168: 117.5 | AX168: 117.5 | AY168: 1989-10-01 | AZ168: 117.5 | BA168: 0
A169: 198911 | B169: 1989 | C169: 11 | D169: 164 | E169: 3876 | F169: 2990 | G169: =G162 -> 0.75 | H169: 118.5 | J169: 1.003885004 | K169: 1.006056528 | AR169: 198911 | AS169: 164 | AT169: 3876 | AU169: 2990 | AV169: 0.75 | AW169: 118.5 | AX169: 118.5 | AY169: 1989-11-01 | AZ169: 118.5 | BA169: 0
A170: 198912 | B170: 1989 | C170: 12 | D170: 165 | E170: 3871 | F170: 3008 | G170: =G162 -> 0.75 | H170: 118.8 | J170: 0.9987100103 | K170: 1.006020067 | AR170: 198912 | AS170: 165 | AT170: 3871 | AU170: 3008 | AV170: 0.75 | AW170: 118.8 | AX170: 118.8 | AY170: 1989-12-01 | AZ170: 118.8 | BA170: 0
A171: 19901 | B171: 1990 | C171: 1 | D171: 166 | E171: 3912 | F171: 3026 | G171: =G162 -> 0.75 | H171: 119.5 | J171: 1.010591578 | K171: 1.005984043 | AR171: 19901 | AS171: 166 | AT171: 3912 | AU171: 3026 | AV171: 0.75 | AW171: 119.5 | AX171: 119.5 | AY171: 1990-01-01 | AZ171: 119.5 | BA171: 0
A172: 19902 | B172: 1990 | C172: 2 | D172: 167 | E172: 3938 | F172: 3043 | G172: =G162 -> 0.75 | H172: 120.2 | J172: 1.006646217 | K172: 1.005617978 | AR172: 19902 | AS172: 167 | AT172: 3938 | AU172: 3043 | AV172: 0.75 | AW172: 120.2 | AX172: 120.2 | AY172: 1990-02-01 | AZ172: 120.2 | BA172: 0
A173: 19903 | B173: 1990 | C173: 3 | D173: 168 | E173: 3938 | F173: 3062 | G173: =G162 -> 0.75 | H173: 121.4 | J173: 1 | K173: 1.006243838 | AR173: 19903 | AS173: 168 | AT173: 3938 | AU173: 3062 | AV173: 0.75 | AW173: 121.4 | AX173: 121.4 | AY173: 1990-03-01 | AZ173: 121.4 | BA173: 0
A174: 19904 | B174: 1990 | C174: 4 | D174: 169 | E174: 4015 | F174: 3080 | G174: 0.75 | H174: 125.1 | J174: 1.019553073 | K174: 1.005878511 | AR174: 19904 | AS174: 169 | AT174: 4015 | AU174: 3080 | AV174: 0.75 | AW174: 125.1 | AX174: 125.1 | AY174: 1990-04-01 | AZ174: 125.1 | BA174: 0
A175: 19905 | B175: 1990 | C175: 5 | D175: 170 | E175: 4052 | F175: 3099 | G175: =G174 -> 0.75 | H175: 126.2 | J175: 1.009215442 | K175: 1.006168831 | AR175: 19905 | AS175: 170 | AT175: 4052 | AU175: 3099 | AV175: 0.75 | AW175: 126.2 | AX175: 126.2 | AY175: 1990-05-01 | AZ175: 126.2 | BA175: 0
A176: 19906 | B176: 1990 | C176: 6 | D176: 171 | E176: 4103 | F176: 3120 | G176: =G174 -> 0.75 | H176: 126.5 | J176: 1.012586377 | K176: 1.006776379 | AR176: 19906 | AS176: 171 | AT176: 4103 | AU176: 3120 | AV176: 0.75 | AW176: 126.5 | AX176: 126.5 | AY176: 1990-06-01 | AZ176: 126.5 | BA176: 0
A177: 19907 | B177: 1990 | C177: 7 | D177: 172 | E177: 4129 | F177: 3144 | G177: =G174 -> 0.75 | H177: 126.8 | J177: 1.006336827 | K177: 1.007692308 | AR177: 19907 | AS177: 172 | AT177: 4129 | AU177: 3144 | AV177: 0.75 | AW177: 126.8 | AX177: 126.8 | AY177: 1990-07-01 | AZ177: 126.8 | BA177: 0
A178: 19908 | B178: 1990 | C178: 8 | D178: 173 | E178: 4149 | F178: 3168 | G178: =G174 -> 0.75 | H178: 128.1 | J178: 1.004843788 | K178: 1.007633588 | AR178: 19908 | AS178: 173 | AT178: 4149 | AU178: 3168 | AV178: 0.75 | AW178: 128.1 | AX178: 128.1 | AY178: 1990-08-01 | AZ178: 128.1 | BA178: 0
A179: 19909 | B179: 1990 | C179: 9 | D179: 174 | E179: 4186 | F179: 3192 | G179: =G174 -> 0.75 | H179: 129.3 | J179: 1.008917812 | K179: 1.007575758 | AR179: 19909 | AS179: 174 | AT179: 4186 | AU179: 3192 | AV179: 0.75 | AW179: 129.3 | AX179: 129.3 | AY179: 1990-09-01 | AZ179: 129.3 | BA179: 0
A180: 199010 | B180: 1990 | C180: 10 | D180: 175 | E180: 4206 | F180: 3217 | G180: =G174 -> 0.75 | H180: 130.3 | J180: 1.004777831 | K180: 1.00783208 | AR180: 199010 | AS180: 175 | AT180: 4206 | AU180: 3217 | AV180: 0.75 | AW180: 130.3 | AX180: 130.3 | AY180: 1990-10-01 | AZ180: 130.3 | BA180: 0
A181: 199011 | B181: 1990 | C181: 11 | D181: 176 | E181: 4247 | F181: 3241 | G181: =G174 -> 0.75 | H181: 130 | J181: 1.009747979 | K181: 1.007460367 | AR181: 199011 | AS181: 176 | AT181: 4247 | AU181: 3241 | AV181: 0.75 | AW181: 130 | AX181: 130 | AY181: 1990-11-01 | AZ181: 130 | BA181: 0
A182: 199012 | B182: 1990 | C182: 12 | D182: 177 | E182: 4273 | F182: 3266 | G182: =G174 -> 0.75 | H182: 129.9 | J182: 1.006121968 | K182: 1.007713669 | AR182: 199012 | AS182: 177 | AT182: 4273 | AU182: 3266 | AV182: 0.75 | AW182: 129.9 | AX182: 129.9 | AY182: 1990-12-01 | AZ182: 129.9 | BA182: 0
A183: 19911 | B183: 1991 | C183: 1 | D183: 178 | E183: 4278 | F183: 3291 | G183: =G174 -> 0.75 | H183: 130.2 | J183: 1.001170138 | K183: 1.007654623 | AR183: 19911 | AS183: 178 | AT183: 4278 | AU183: 3291 | AV183: 0.75 | AW183: 130.2 | AX183: 130.2 | AY183: 1991-01-01 | AZ183: 130.2 | BA183: 0
A184: 19912 | B184: 1991 | C184: 2 | D184: 179 | E184: 4294 | F184: 3314 | G184: =G174 -> 0.75 | H184: 130.9 | J184: 1.003740065 | K184: 1.006988757 | AR184: 19912 | AS184: 179 | AT184: 4294 | AU184: 3314 | AV184: 0.75 | AW184: 130.9 | AX184: 130.9 | AY184: 1991-02-01 | AZ184: 130.9 | BA184: 0
A185: 19913 | B185: 1991 | C185: 3 | D185: 180 | E185: 4278 | F185: 3340 | G185: =G174 -> 0.75 | H185: 131.4 | J185: 0.9962738705 | K185: 1.007845504 | AR185: 19913 | AS185: 180 | AT185: 4278 | AU185: 3340 | AV185: 0.75 | AW185: 131.4 | AX185: 131.4 | AY185: 1991-03-01 | AZ185: 131.4 | BA185: 0
A186: 19914 | B186: 1991 | C186: 4 | D186: 181 | E186: 4351 | F186: 3362 | G186: 0.75 | H186: 133.1 | J186: 1.017064049 | K186: 1.006586826 | AR186: 19914 | AS186: 181 | AT186: 4351 | AU186: 3362 | AV186: 0.75 | AW186: 133.1 | AX186: 133.1 | AY186: 1991-04-01 | AZ186: 133.1 | BA186: 0
A187: 19915 | B187: 1991 | C187: 5 | D187: 182 | E187: 4387 | F187: 3385 | G187: =G186 -> 0.75 | H187: 133.5 | J187: 1.00827396 | K187: 1.006841166 | AR187: 19915 | AS187: 182 | AT187: 4387 | AU187: 3385 | AV187: 0.75 | AW187: 133.5 | AX187: 133.5 | AY187: 1991-05-01 | AZ187: 133.5 | BA187: 0
A188: 19916 | B188: 1991 | C188: 6 | D188: 183 | E188: 4407 | F188: 3408 | G188: =G186 -> 0.75 | H188: 134.1 | J188: 1.004558924 | K188: 1.006794682 | AR188: 19916 | AS188: 183 | AT188: 4407 | AU188: 3408 | AV188: 0.75 | AW188: 134.1 | AX188: 134.1 | AY188: 1991-06-01 | AZ188: 134.1 | BA188: 0
A189: 19917 | B189: 1991 | C189: 7 | D189: 184 | E189: 4423 | F189: 3432 | G189: =G186 -> 0.75 | H189: 133.8 | J189: 1.003630588 | K189: 1.007042254 | AR189: 19917 | AS189: 184 | AT189: 4423 | AU189: 3432 | AV189: 0.75 | AW189: 133.8 | AX189: 133.8 | AY189: 1991-07-01 | AZ189: 133.8 | BA189: 0
A190: 19918 | B190: 1991 | C190: 8 | D190: 185 | E190: 4469 | F190: 3456 | G190: =G186 -> 0.75 | H190: 134.1 | J190: 1.010400181 | K190: 1.006993007 | AR190: 19918 | AS190: 185 | AT190: 4469 | AU190: 3456 | AV190: 0.75 | AW190: 134.1 | AX190: 134.1 | AY190: 1991-08-01 | AZ190: 134.1 | BA190: 0
A191: 19919 | B191: 1991 | C191: 9 | D191: 186 | E191: 4485 | F191: 3479 | G191: =G186 -> 0.75 | H191: 134.6 | J191: 1.003580219 | K191: 1.006655093 | AR191: 19919 | AS191: 186 | AT191: 4485 | AU191: 3479 | AV191: 0.75 | AW191: 134.6 | AX191: 134.6 | AY191: 1991-09-01 | AZ191: 134.6 | BA191: 0
A192: 199110 | B192: 1991 | C192: 10 | D192: 187 | E192: 4505 | F192: 3503 | G192: =G186 -> 0.75 | H192: 135.1 | J192: 1.004459309 | K192: 1.006898534 | AR192: 199110 | AS192: 187 | AT192: 4505 | AU192: 3503 | AV192: 0.75 | AW192: 135.1 | AX192: 135.1 | AY192: 1991-10-01 | AZ192: 135.1 | BA192: 0
A193: 199111 | B193: 1991 | C193: 11 | D193: 188 | E193: 4557 | F193: 3527 | G193: =G186 -> 0.75 | H193: 135.6 | J193: 1.01154273 | K193: 1.00685127 | AR193: 199111 | AS193: 188 | AT193: 4557 | AU193: 3527 | AV193: 0.75 | AW193: 135.6 | AX193: 135.6 | AY193: 1991-11-01 | AZ193: 135.6 | BA193: 0
A194: 199112 | B194: 1991 | C194: 12 | D194: 189 | E194: 4546 | F194: 3551 | G194: =G186 -> 0.75 | H194: 135.7 | J194: 0.9975861312 | K194: 1.00680465 | AR194: 199112 | AS194: 189 | AT194: 4546 | AU194: 3551 | AV194: 0.75 | AW194: 135.7 | AX194: 135.7 | AY194: 1991-12-01 | AZ194: 135.7 | BA194: 0
A195: 19921 | B195: 1992 | C195: 1 | D195: 190 | E195: 4588 | F195: 3576 | G195: =G186 -> 0.75 | H195: 135.6 | J195: 1.009238891 | K195: 1.00704027 | AR195: 19921 | AS195: 190 | AT195: 4588 | AU195: 3576 | AV195: 0.75 | AW195: 135.6 | AX195: 135.6 | AY195: 1992-01-01 | AZ195: 135.6 | BA195: 0
A196: 19922 | B196: 1992 | C196: 2 | D196: 191 | E196: 4608 | F196: 3599 | G196: =G186 -> 0.75 | H196: 136.3 | J196: 1.004359198 | K196: 1.006431767 | AR196: 19922 | AS196: 191 | AT196: 4608 | AU196: 3599 | AV196: 0.75 | AW196: 136.3 | AX196: 136.3 | AY196: 1992-02-01 | AZ196: 136.3 | BA196: 0
A197: 19923 | B197: 1992 | C197: 3 | D197: 192 | E197: 4639 | F197: 3624 | G197: =G186 -> 0.75 | H197: 136.7 | J197: 1.006727431 | K197: 1.006946374 | AR197: 19923 | AS197: 192 | AT197: 4639 | AU197: 3624 | AV197: 0.75 | AW197: 136.7 | AX197: 136.7 | AY197: 1992-03-01 | AZ197: 136.7 | BA197: 0
A198: =B198&C198 -> 19924 | B198: 1992 | C198: 4 | D198: 193 | E198: 4619 | F198: 3648 | G198: 0.75 | H198: 138.8 | J198: 0.995688726 | K198: 1.006622517 | AR198: =A198 -> 19924 | AS198: 193 | AT198: 4619 | AU198: 3648 | AV198: 0.75 | AW198: 138.8 | AX198: 138.8 | AY198: 1992-04-01 | AZ198: 138.8 | BA198: =(AZ198=AW198)*-1+1 -> 0
A199: 19925 | B199: =ROUNDDOWN((D199+2)/12,0)+1976 -> 1992 | C199: =MOD(D199+2,12)+1 -> 5 | D199: 194 | E199: 4655 | F199: 3673 | G199: =G198 -> 0.75 | H199: 139.3 | J199: 1.007793895 | K199: 1.00685307 | AR199: 19925 | AS199: 194 | AT199: =ROUND(IF(ROW()<BC$2,E199,INDIRECT(ADDRESS(BC$2,E$3))*(INDIRECT(ADDRESS(BC$2,E$3))/INDIRECT(ADDRESS(BC199-$BJ$3,E$3)))^((ROW()-BC199)/$BJ$3)*((ROW()-BC199-1)<$BM$3)),0) -> 4655 | AU199: =ROUND(IF(ROW()<BD$2,F199,INDIRECT(ADDRESS(BD$2,F$3))*(INDIRECT(ADDRESS(BD$2,F$3))/INDIRECT(ADDRESS(BD199-$BJ$3,F$3)))^((ROW()-BD199)/$BJ$3)*((ROW()-BD199-1)<$BM$3)),0) -> 3673 | AV199: =MIN(1,ROUND(IF(ROW()<BE$2,G199,INDIRECT(ADDRESS(BE$2,G$3))*(INDIRECT(ADDRESS(BE$2,G$3))/INDIRECT(ADDRESS(BE199-$BJ$3,G$3)))^((ROW()-BE199)/$BJ$3)*((ROW()-BE199-1)<$BM$3)),2)) -> 0.75 | AW199: =ROUND(IF(ROW()<BF$2,H199,INDIRECT(ADDRESS(BF$2,H$3))*(INDIRECT(ADDRESS(BF$2,H$3))/INDIRECT(ADDRESS(BF199-$BJ$3,H$3)))^((ROW()-BF199)/$BJ$3)*((ROW()-BF199-1)<$BM$3)),1) -> 139.3 | AX199: =AW199 -> 139.3 | AY199: 1992-05-01 | AZ199: 139.3 | BA199: 0
A200: 19926 | B200: 1992 | C200: 6 | D200: =D199+1 -> 195 | E200: 4675 | F200: 3696 | G200: =G198 -> 0.75 | H200: 139.3 | J200: 1.004296455 | K200: 1.006261911 | AN200: =IF(AND(AT200=0,AT199>0),DATE(B200,C200-1,1),"") ->  | AP200: =IF(AND(AU200=0,AU199>0),DATE(B200,C200-1,1),"") ->  | AR200: 19926 | AS200: 195 | AT200: 4675 | AU200: 3696 | AV200: 0.75 | AW200: 139.3 | AX200: 139.3 | AY200: 1992-06-01 | AZ200: 139.3 | BA200: 0
... 371 more rows

Sheet Calculation (hidden)
B5: Month | C5: Year | D5: Month number | E5: Tax Rate
B6: =MONTH(Contributions!K20) ->  | C6: =YEAR(Contributions!K20) ->  | D6: =(Calculation!C6-1976)*12+Calculation!B6-3 ->  | E6: =VLOOKUP(D6,tab,4) -> 
B7: =MONTH(Contributions!K21) ->  | C7: =YEAR(Contributions!K21) ->  | D7: =(Calculation!C7-1976)*12+Calculation!B7-3 ->  | E7: =VLOOKUP(D7,tab,4) -> 
A8: s | B8: =MONTH(Contributions!K26) ->  | C8: =YEAR(Contributions!K26) ->  | D8: =(Calculation!C8-1976)*12+Calculation!B8-3 ->  | E8: =VLOOKUP(D8,tab,4) ->  | H8: =VLOOKUP(D8,tab,2,FALSE) ->  | I8: Earnings index at salary date
A9: p | B9: =MONTH(Contributions!K16) ->  | C9: =YEAR(Contributions!K16) ->  | D9: =(Calculation!C9-1976)*12+Calculation!B9-3 ->  | H9: =VLOOKUP(D9,tab,3,FALSE) ->  | I9: Interest Index at payment date
B11: "Net of tax" rate at payment date | E11: =1-Contributions!E32 -> 1
B14: Contributions due (where no tax relief available) | H14: =Calculation!F19*Contributions!K27*Contributions!E28*Contributions!E29*Calculation!H9/(12*Calculation!H8) -> 
B16: Contributions due (where tax relief available at payment date) | H16: =Calculation!F19*Contributions!K27*Contributions!E28*Contributions!E29*Calculation!H9/(12*Calculation!H8*Calculation!E11) -> 
B18: Month | C18: Earnings Index | D18: Interest Index | E18: Tax Rate
F19: =SUM(F20:F418) ->  | H19: =SUM(H20:H418) -> 
B20: =D6 ->  | C20: =VLOOKUP(B20,tab,2,FALSE) ->  | D20: =VLOOKUP(B20,tab,3,FALSE) ->  | E20: =VLOOKUP(B20,tab,4,FALSE) ->  | F20: =C20*E20/D20 ->  | H20: =C20/D20 -> 
B21: =IF(B20=0,0,IF(B20=$D$7-1,0,B20+1)) ->  | C21: =VLOOKUP(B21,tab,2,FALSE) ->  | D21: =VLOOKUP(B21,tab,3,FALSE) ->  | E21: =VLOOKUP(B21,tab,4,FALSE) ->  | F21: =C21*E21/D21 ->  | H21: =C21/D21 -> 
D44: =VLOOKUP(B44,tab,3,FALSE) ->  | E44: =VLOOKUP(B44,tab,4,FALSE) -> 
B85: =IF(B84=0,0,IF(B84=$D$7-1,0,B84+1)) ->  | C85: =VLOOKUP(B85,tab,2,FALSE) ->  | F85: =C85*E85/D85 ->  | H85: =C85/D85 -> 
D108: =VLOOKUP(B108,tab,3,FALSE) ->  | E108: =VLOOKUP(B108,tab,4,FALSE) -> 
B149: =IF(B148=0,0,IF(B148=$D$7-1,0,B148+1)) ->  | C149: =VLOOKUP(B149,tab,2,FALSE) ->  | F149: =C149*E149/D149 ->  | H149: =C149/D149 -> 
D172: =VLOOKUP(B172,tab,3,FALSE) ->  | E172: =VLOOKUP(B172,tab,4,FALSE) -> 
B213: =IF(B212=0,0,IF(B212=$D$7-1,0,B212+1)) ->  | C213: =VLOOKUP(B213,tab,2,FALSE) ->  | F213: =C213*E213/D213 ->  | H213: =C213/D213 -> 
D236: =VLOOKUP(B236,tab,3,FALSE) ->  | E236: =VLOOKUP(B236,tab,4,FALSE) -> 
B277: =IF(B276=0,0,IF(B276=$D$7-1,0,B276+1)) ->  | C277: =VLOOKUP(B277,tab,2,FALSE) ->  | F277: =C277*E277/D277 ->  | H277: =C277/D277 -> 
D300: =VLOOKUP(B300,tab,3,FALSE) ->  | E300: =VLOOKUP(B300,tab,4,FALSE) -> 
B341: =IF(B340=0,0,IF(B340=$D$7-1,0,B340+1)) ->  | C341: =VLOOKUP(B341,tab,2,FALSE) ->  | F341: =C341*E341/D341 ->  | H341: =C341/D341 -> 
D364: =VLOOKUP(B364,tab,3,FALSE) ->  | E364: =VLOOKUP(B364,tab,4,FALSE) -> 
B405: =IF(B404=0,0,IF(B404=$D$7-1,0,B404+1)) ->  | C405: =VLOOKUP(B405,tab,2,FALSE) ->  | F405: =C405*E405/D405 ->  | H405: =C405/D405 -> 
